Workbook

Sheet FT-R Transfers (Freq & Vol)
A1: FT-R Transfer Summary - Frequency
A2: Total | G2: Peace River (PR) | L2: Mainline (ML) | Q2: North & East (NE)
A3: Month | B3: Approved (Manual) | C3: Approved (ATP) | D3: Denied | E3: Cancelled | F3: Total | G3: Approved (Manual) | H3: Approved (ATP) | I3: Denied | J3: Cancelled | K3: Total | L3: Approved (Manual) | M3: Approved (ATP) | N3: Denied | O3: Cancelled | P3: Total | Q3: Approved (Manual) | R3: Approved (ATP) | S3: Denied | T3: Cancelled | U3: Total
A4: 2024-08-22 | B4: =ROUND(SUM(G4,L4,Q4),0) -> 510 | C4: =ROUND(SUM(H4,M4,R4),0) -> 1100 | D4: =ROUND(SUM(I4,N4,S4),0) -> 47 | E4: =ROUND(SUM(J4,O4,T4),0) -> 26 | F4: =ROUND(SUM(K4,P4,U4),0) -> 1683 | G4: 351 | H4: 829 | I4: 35 | J4: =22 -> 22 | K4: =SUM(G4:J4) -> 1237 | L4: 133 | M4: 211 | N4: 3 | O4: 2 | P4: =SUM(L4:O4) -> 349 | Q4: 26 | R4: 60 | S4: 9 | T4: 2 | U4: =SUM(Q4:T4) -> 97
A5: 2024-09-22 | B5: 746 | C5: 946 | D5: 64 | E5: 45 | F5: 1801 | G5: 485 | H5: 720 | I5: 63 | J5: =19+7 -> 26 | K5: 1294 | L5: 217 | M5: 180 | N5: 0 | O5: 6 | P5: 403 | Q5: 44 | R5: 46 | S5: 1 | T5: 13 | U5: 104
A6: 2024-10-22 | B6: 654 | C6: 1163 | D6: 55 | E6: 52 | F6: 1924 | G6: 467 | H6: 907 | I6: 54 | J6: =49 -> 49 | K6: 1477 | L6: 148 | M6: 183 | N6: 0 | O6: 3 | P6: 334 | Q6: 39 | R6: 73 | S6: 1 | T6: 0 | U6: 113
A7: 2024-11-22 | B7: 797 | C7: 1120 | D7: 50 | E7: 43 | F7: 2010 | G7: 513 | H7: 848 | I7: 50 | J7: =34 -> 34 | K7: 1445 | L7: 206 | M7: 203 | N7: 0 | O7: 9 | P7: 418 | Q7: 78 | R7: 69 | S7: 0 | T7: 0 | U7: 147
A8: 2024-12-22 | B8: 560 | C8: 1171 | D8: 51 | E8: 4 | F8: 1786 | G8: 327 | H8: 855 | I8: 46 | J8: =4 -> 4 | K8: 1232 | L8: 200 | M8: 237 | N8: 5 | O8: 0 | P8: 442 | Q8: 33 | R8: 79 | S8: 0 | T8: 0 | U8: 112
A9: 2025-01-22 | B9: 811 | C9: 1383 | D9: 106 | E9: 70 | F9: 2370 | G9: 505 | H9: 1069 | I9: 102 | J9: 56 | K9: 1732 | L9: 259 | M9: 227 | N9: 0 | O9: 7 | P9: 493 | Q9: 47 | R9: 87 | S9: 4 | T9: 7 | U9: 145
A10: 2025-02-22 | B10: 775 | C10: 1209 | D10: 113 | E10: 48 | F10: 2145 | G10: 536 | H10: 998 | I10: 91 | J10: 33 | K10: 1658 | L10: 192 | M10: 172 | N10: 22 | O10: 10 | P10: 396 | Q10: 47 | R10: 39 | S10: 0 | T10: 5 | U10: 91
A11: 2025-03-22 | B11: 765 | C11: 1452 | D11: 175 | E11: 32 | F11: 2424 | G11: 513 | H11: 1266 | I11: 170 | J11: 32 | K11: 1981 | L11: 192 | M11: 150 | N11: 3 | O11: 0 | P11: 345 | Q11: 60 | R11: 36 | S11: 2 | T11: 0 | U11: 98
A12: 2025-04-22 | B12: =ROUND(SUM(G12,L12,Q12),0) -> 650 | C12: =ROUND(SUM(H12,M12,R12),0) -> 1248 | D12: 85 | E12: 50 | F12: 2033 | G12: 450 | H12: 1044 | I12: 85 | J12: 46 | K12: =SUM(G12:J12) -> 1625 | L12: 160 | M12: 157 | N12: 0 | O12: 4 | P12: =SUM(L12:O12) -> 321 | Q12: 40 | R12: 47 | S12: 0 | T12: 0 | U12: =SUM(Q12:T12) -> 87
A13: 2025-05-22 | B13: 645 | C13: 1258 | D13: 72 | E13: 68 | F13: 2043 | G13: 515 | H13: 1049 | I13: 71 | J13: 61 | K13: 1696 | L13: 85 | M13: 170 | N13: 1 | O13: 2 | P13: 258 | Q13: 45 | R13: 39 | S13: 0 | T13: 5 | U13: 89
A14: 2025-06-22 | B14: 762 | C14: 1321 | D14: 65 | E14: 32 | F14: 2180 | G14: 499 | H14: 1102 | I14: 58 | J14: 29 | K14: 1688 | L14: 200 | M14: 196 | N14: 7 | O14: 3 | P14: 406 | Q14: 63 | R14: 23 | S14: 0 | T14: 0 | U14: 86
A15: 2025-07-22 | B15: =ROUND(SUM(G15,L15,Q15),0) -> 709 | C15: =ROUND(SUM(H15,M15,R15),0) -> 1189 | D15: =ROUND(SUM(I15,N15,S15),0) -> 85 | E15: =ROUND(SUM(J15,O15,T15),0) -> 36 | F15: =ROUND(SUM(K15,P15,U15),0) -> 2019 | G15: 502 | H15: 965 | I15: 78 | J15: 21 | K15: =SUM(G15:J15) -> 1566 | L15: 172 | M15: 159 | N15: 5 | O15: 15 | P15: =SUM(L15:O15) -> 351 | Q15: 35 | R15: 65 | S15: 2 | T15: 0 | U15: =SUM(Q15:T15) -> 102
A16: 2025-08-22 | B16: =ROUND(SUM(G16,L16,Q16),0) -> 670 | C16: =ROUND(SUM(H16,M16,R16),0) -> 1160 | D16: =ROUND(SUM(I16,N16,S16),0) -> 59 | E16: =ROUND(SUM(J16,O16,T16),0) -> 36 | F16: =ROUND(SUM(K16,P16,U16),0) -> 1925 | G16: 511 | H16: 937 | I16: 51 | J16: 36 | K16: =SUM(G16:J16) -> 1535 | L16: 113 | M16: 190 | N16: 8 | O16: 0 | P16: =SUM(L16:O16) -> 311 | Q16: 46 | R16: 33 | S16: 0 | T16: 0 | U16: =SUM(Q16:T16) -> 79
A18: FT-R Transfer Summary - Volume (103m3/d)
A19: Total | G19: Peace River (PR) | L19: Mainline (ML) | Q19: North & East (NE)
A20: Month | B20: Approved (Manual) | C20: Approved (ATP) | D20: Denied | E20: Cancelled | F20: Total | G20: Approved (Manual) | H20: Approved (ATP) | I20: Denied | J20: Cancelled | K20: Total | L20: Approved (Manual) | M20: Approved (ATP) | N20: Denied | O20: Cancelled | P20: Total | Q20: Approved (Manual) | R20: Approved (ATP) | S20: Denied | T20: Cancelled | U20: Total
A21: 2024-08-22 | B21: =SUM(ROUND(G21,0),ROUND(L21,0),ROUND(Q21,0)) -> 66797 | C21: =SUM(ROUND(H21,0),ROUND(M21,0),ROUND(R21,0)) -> 114231 | D21: =SUM(ROUND(I21,0),ROUND(N21,0),ROUND(S21,0)) -> 6137 | E21: =SUM(ROUND(J21,0),ROUND(O21,0),ROUND(T21,0)) -> 1902 | F21: =SUM(B21:E21) -> 189067 | G21: 65072.9 | H21: 110450.3 | I21: 5577.9 | J21: =1606.8+196.5 -> 1803.3 | K21: =SUM(G21:J21) -> 182904.4 | L21: 1529.8 | M21: 3398 | N21: 176 | O21: =49+30 -> 79 | P21: =SUM(L21:O21) -> 5182.8 | Q21: 194.3 | R21: 383.4 | S21: 383.4 | T21: 20 | U21: =SUM(Q21:T21) -> 981.1
A22: 2024-09-22 | B22: 93240 | C22: 128361 | D22: 13332 | E22: 7851 | F22: 242784 | G22: 89707.2 | H22: 123672.7 | I22: 13332.2 | J22: =5409.3+1929.8 -> 7339.1 | K22: 234051.2 | L22: 2981.7 | M22: 3865.3 | N22: 0 | O22: =389.7 -> 389.7 | P22: =SUM(L22:O22) -> 7236.7 | Q22: 550.8 | R22: 823.2 | S22: 0.3 | T22: 122 | U22: 1496.3
A23: 2024-10-22 | B23: 104989 | C23: 140453 | D23: 7392 | E23: 13365 | F23: 266199 | G23: 102389 | H23: 136571 | I23: 7390 | J23: =11535.4+1368.2 -> 12903.6 | K23: 259253.6 | L23: 2201 | M23: 2929 | N23: 0 | O23: =415+46 -> 461 | P23: =SUM(L23:O23) -> 5591 | Q23: 399 | R23: 953 | S23: 2 | T23: 0 | U23: =SUM(Q23:T23) -> 1354
A24: 2024-11-22 | B24: 71043 | C24: 132505 | D24: 6457 | E24: 7829 | F24: 217834 | G24: 67529 | H24: 129115 | I24: 6457 | J24: =4984+2672 -> 7656 | K24: 210757 | L24: 2681 | M24: 2985 | N24: 0 | O24: =173 -> 173 | P24: =SUM(L24:O24) -> 5839 | Q24: 833 | R24: 405 | S24: 0 | T24: 0 | U24: 1238
A25: 2024-12-22 | B25: 51855 | C25: 128738 | D25: 6023 | E25: 688 | F25: 187304 | G25: 49947 | H25: 124540 | I25: 5957 | J25: 688 | K25: 181132 | L25: 1599 | M25: 3594 | N25: 66 | O25: 0 | P25: 5259 | Q25: 309 | R25: 604 | S25: 0 | T25: 0 | U25: 913
A26: 2025-01-22 | B26: 102438 | C26: 148036 | D26: 19760 | E26: 17963 | F26: 288197 | G26: 99269 | H26: 143367 | I26: 19734 | J26: =16261+1652 -> 17913 | K26: 280283 | L26: 2596 | M26: 3455 | N26: 0 | O26: 10 | P26: 6061 | Q26: 573 | R26: 1214 | S26: 26 | T26: 40 | U26: 1853
A27: 2025-02-22 | B27: 119572 | C27: 172460 | D27: 14989 | E27: 13881 | F27: 320902 | G27: 112432 | H27: 167169 | I27: 14317 | J27: =10509+3212 -> 13721 | K27: 307639 | L27: 6659 | M27: 4613 | N27: 672 | O27: 103 | P27: 12047 | Q27: 481 | R27: 678 | S27: 0 | T27: 57 | U27: 1216
A28: 2025-03-22 | B28: 69698 | C28: 244083 | D28: 2743 | E28: 12245 | F28: 328769 | G28: 68058 | H28: 239714 | I28: 2711 | J28: =12029+216 -> 12245 | K28: 322728 | L28: 1282 | M28: 3849 | N28: 27 | O28: 0 | P28: =SUM(L28:O28) -> 5158 | Q28: 358 | R28: 520 | S28: 5 | T28: 0 | U28: =SUM(Q28:T28) -> 883
A29: 2025-04-22 | B29: =SUM(ROUND(G29,0),ROUND(L29,0),ROUND(Q29,0)) -> 98756 | C29: 157133 | D29: 9858 | E29: =SUM(ROUND(J29,0),ROUND(O29,0),ROUND(T29,0)) -> 8242 | F29: =SUM(B29:E29) -> 273989 | G29: 96328 | H29: 153212 | I29: 9831 | J29: =7515+641 -> 8156 | K29: =SUM(G29:J29) -> 267527 | L29: 2132 | M29: 3396 | N29: 27 | O29: 86 | P29: =SUM(L29:O29) -> 5641 | Q29: 296 | R29: 525 | S29: 0 | T29: 0 | U29: =SUM(Q29:T29) -> 821
A30: 2025-05-22 | B30: =SUM(ROUND(G30,0),ROUND(L30,0),ROUND(Q30,0)) -> 91186 | C30: 187106 | D30: 7899 | E30: 12794 | F30: 298985 | G30: 90220 | H30: 179523 | I30: 7859 | J30: =7270+5489 -> 12759 | K30: 290361 | L30: 707 | M30: 7173 | N30: 40 | O30: 13 | P30: 7933 | Q30: 259 | R30: 410 | S30: 0 | T30: 22 | U30: 691
A31: 2025-06-22 | B31: =SUM(ROUND(G31,0),ROUND(L31,0),ROUND(Q31,0)) -> 148214 | C31: 235078 | D31: 21482 | E31: 15839 | F31: 420613 | G31: 145424.9 | H31: 229435.5 | I31: 21156.8 | J31: 15830 | K31: 411847.2 | L31: 2558.1 | M31: 5405.2 | N31: 325 | O31: 9 | P31: 8297.3 | Q31: 230.5 | R31: 237.4 | S31: 0 | T31: 0 | U31: 467.9
A32: 2025-07-22 | B32: =SUM(ROUND(G32,0),ROUND(L32,0),ROUND(Q32,0)) -> 198146 | C32: =SUM(ROUND(H32,0),ROUND(M32,0),ROUND(R32,0)) -> 203584 | D32: =SUM(ROUND(I32,0),ROUND(N32,0),ROUND(S32,0)) -> 20293 | E32: =SUM(ROUND(J32,0),ROUND(O32,0),ROUND(T32,0)) -> 7264 | F32: =SUM(B32:E32) -> 429287 | G32: 192297.6 | H32: 198284 | I32: 19665.2 | J32: 7218.6 | K32: =SUM(G32:J32) -> 417465.4 | L32: 5622.8 | M32: 4793.4 | N32: 609.9 | O32: 45 | P32: =SUM(L32:O32) -> 11071.1 | Q32: 224.9 | R32: 507.3 | S32: 17.5 | T32: 0 | U32: =SUM(Q32:T32) -> 749.7
A33: 2025-08-22 | B33: =SUM(ROUND(G33,0),ROUND(L33,0),ROUND(Q33,0)) -> 161511 | C33: =SUM(ROUND(H33,0),ROUND(M33,0),ROUND(R33,0)) -> 178778 | D33: =SUM(ROUND(I33,0),ROUND(N33,0),ROUND(S33,0)) -> 8578 | E33: =SUM(ROUND(J33,0),ROUND(O33,0),ROUND(T33,0)) -> 5963 | F33: =SUM(B33:E33) -> 354830 | G33: 157745.3 | H33: 173078.9 | I33: 8027.7 | J33: 5963.1 | K33: =SUM(G33:J33) -> 344815 | L33: 3475.4 | M33: 5247.9 | N33: 549.8 | O33: 0 | P33: =SUM(L33:O33) -> 9273.1 | Q33: 291 | R33: 451.2 | S33: 0 | T33: 0 | U33: =SUM(Q33:T33) -> 742.2
A36: Cross Boundary Transfers
A37: Month | B37: Frequency | C37: Volume (e3m3/d) | D37: Information
A38: 2024-01-01 | B38: 1 | C38: 50 | D38: Requested out and back FT-R transfer volume from PR to ML was cancelled
A39: 2024-02-01 | B39: 1 | C39: 50 | D39: Requested out and back FT-R transfer volume from PR to ML was cancelled
A40: 2024-03-01 | B40: 1 | C40: 50 | D40: Requested out and back FT-R transfer volume from PR to ML was cancelled
A41: 2024-08-01 | B41: N/A | C41: N/A | D41: N/A
A42: 2024-09-01 | B42: 1 | C42: 0.1 | D42: Requested one-way FT-R transfer volume from ML to NE was approved
A43: 2024-10-01 | B43: 1 | C43: 390 | D43: Requested out and back FT-R transfer volume from PR to ML was cancelled
B44: 1 | C44: 11 | D44: Requested one-way FT-R transfer volume from PR to NE was approved
A45: 2024-11-01 | B45: N/A | C45: N/A | D45: N/A
A46: 2024-12-01 | B46: N/A | C46: N/A | D46: N/A
A47: 2025-01-01 | B47: N/A | C47: N/A | D47: N/A
A48: 2024-02-01 | B48: N/A | C48: N/A | D48: N/A
A49: 2024-03-01 | B49: N/A | C49: N/A | D49: N/A
A50: 2025-04-01 | B50: N/A | C50: N/A | D50: N/A
A51: 2025-05-01 | B51: N/A | C51: N/A | D51: N/A
A52: 2025-06-01 | B52: 1 | C52: 40.5 | D52: Requested out and back FT-R transfer volume from PR to ML was approved
A53: 2025-07-01 | B53: N/A | C53: N/A | D53: N/A
A54: 2025-08-01 | B54: 2 | C54: 5.5 | D54: Requested one-way FT-R transfer volume from ML to NE was approved
A55: Notes:
A56: 1. Values represent the number of transfer requests processed in the specified month, regardless of effective date
A57: 2. Includes all "out and back" and "one-way" transfers
A58: 3. Out and back transfer requests are tallied as a single transaction
A59: 4. Transfers to storage are not included in totals
A60: 5. Transfers that cross a Delivery Design Area boundary are tallied in the area where the "To" location is situated
A61: 6. Cancelled transfer requests are initiated by the requester (customer, marketer etc.)
A62: 7. ATP is the acronym for Automated Transfer Process, requests that meet certain criteria may be approved automatically
A63: 8. Delivery Design Area boundaries are illustrated in the Design Methodology document on Customer Express (see NGTL/Regulatory/Facilities)
A64: http://www.tccustomerexpress.com/docs/ab_regulatory_facilities/Facilities%20Design%20Methodology%20Document%20-%20Revision%20May%2031,%202018_Oct%204.pdf
U68: 1

Sheet FT-D Transfers (Frequency)
A2: FT-D Transfer Summary - Frequency
A3: Total | F3: NW Alberta and NE BC | J3: NE Alberta | N3: Edmonton and Area | R3: SW Alberta | V3: SE Alberta
A4: Month | B4: Approved | C4: Denied | D4: Cancelled | E4: Total | F4: Approved | G4: Denied | H4: Cancelled | I4: Total | J4: Approved | K4: Denied | L4: Cancelled | M4: Total | N4: Approved | O4: Denied | P4: Cancelled | Q4: Total | R4: Approved | S4: Denied | T4: Cancelled | U4: Total | V4: Approved | W4: Denied | X4: Cancelled | Y4: Total
A5: 2024-08-22 | B5: =SUM(F5,J5,N5,R5,V5) -> 71 | C5: =SUM(G5,K5,O5,S5,W5) -> 0 | D5: =SUM(H5,L5,P5,T5,X5) -> 0 | E5: =SUM(B5:D5) -> 71 | F5: =SUM(F22,F39,F56,F78) -> 0 | G5: =SUM(G22,G78) -> 0 | H5: =SUM(H22,H39,H56,H78) -> 0 | I5: =SUM(F5:H5) -> 0 | J5: =SUM(J22,J39,J56,J78) -> 2 | K5: =SUM(K22,K39,K56,K78) -> 0 | L5: =SUM(L22,L39,L56,L78) -> 0 | M5: =SUM(J5:L5) -> 2 | N5: =SUM(N22,N39,N56,N78) -> 2 | O5: =SUM(O22,O39,O56,O78) -> 0 | P5: =SUM(P22,P39,P56,P78) -> 0 | Q5: =SUM(N5:P5) -> 2 | R5: =SUM(R22,R39,R56,R78) -> 0 | S5: =SUM(S22,S39,S56,S78) -> 0 | T5: =SUM(T22,T39,T56,T78) -> 0 | U5: =SUM(R5:T5) -> 0 | V5: =SUM(V22,V39,V56,B95,C95,I95,J95) -> 67 | W5: =SUM(W22,W39,W56,W78,D95,K95) -> 0 | X5: =SUM(X22,X39,X56,X78,E95,L95) -> 0 | Y5: =SUM(V5:X5) -> 67
A6: 2024-09-22 | B6: 62 | C6: 0 | D6: 0 | E6: 62 | F6: =SUM(F23,F40,F57,F79) -> 1 | G6: =SUM(G23,G79) -> 0 | H6: =SUM(H23,H40,H57,H79) -> 0 | I6: 1 | J6: =SUM(J23,J40,J57,J79) -> 1 | K6: =SUM(K23,K40,K57,K79) -> 0 | L6: =SUM(L23,L40,L57,L79) -> 0 | M6: 1 | N6: =SUM(N23,N40,N57,N79) -> 1 | O6: =SUM(O23,O40,O57,O79) -> 0 | P6: =SUM(P23,P40,P57,P79) -> 0 | Q6: 1 | R6: =SUM(R23,R40,R57,R79) -> 0 | S6: =SUM(S23,S40,S57,S79) -> 0 | T6: =SUM(T23,T40,T57,T79) -> 0 | U6: 0 | V6: =SUM(V23,V40,V57,B96,C96,I96,J96) -> 59 | W6: =SUM(W23,W40,W57,W79,D96,K96) -> 0 | X6: =SUM(X23,X40,X57,X79,E96,L96) -> 0 | Y6: 59
A7: 2024-10-22 | B7: 86 | C7: 1 | D7: 0 | E7: 87 | F7: =SUM(F24,F41,F58,F80) -> 0 | G7: =SUM(G24,G80) -> 0 | H7: =SUM(H24,H41,H58,H80) -> 0 | I7: 0 | J7: =SUM(J24,J41,J58,J80) -> 3 | K7: =SUM(K24,K41,K58,K80) -> 0 | L7: =SUM(L24,L41,L58,L80) -> 0 | M7: 3 | N7: =SUM(N24,N41,N58,N80) -> 1 | O7: =SUM(O24,O41,O58,O80) -> 1 | P7: =SUM(P24,P41,P58,P80) -> 0 | Q7: 2 | R7: =SUM(R24,R41,R58,R80) -> 0 | S7: =SUM(S24,S41,S58,S80) -> 0 | T7: =SUM(T24,T41,T58,T80) -> 0 | U7: 0 | V7: =SUM(V24,V41,V58,B97,C97,I97,J97) -> 82 | W7: =SUM(W24,W41,W58,W80,D97,K97) -> 0 | X7: =SUM(X24,X41,X58,X80,E97,L97) -> 0 | Y7: 82
A8: 2024-11-22 | B8: 76 | C8: 3 | D8: 0 | E8: 79 | F8: =SUM(F25,F42,F59,F81) -> 0 | G8: =SUM(G25,G81) -> 0 | H8: =SUM(H25,H42,H59,H81) -> 0 | I8: 0 | J8: =SUM(J25,J42,J59,J81) -> 2 | K8: =SUM(K25,K42,K59,K81) -> 2 | L8: =SUM(L25,L42,L59,L81) -> 0 | M8: 4 | N8: =SUM(N25,N42,N59,N81) -> 1 | O8: =SUM(O25,O42,O59,O81) -> 0 | P8: =SUM(P25,P42,P59,P81) -> 0 | Q8: 1 | R8: =SUM(R25,R42,R59,R81) -> 1 | S8: =SUM(S25,S42,S59,S81) -> 0 | T8: =SUM(T25,T42,T59,T81) -> 0 | U8: 1 | V8: =SUM(V25,V42,V59,B98,C98,I98,J98) -> 72 | W8: =SUM(W25,W42,W59,W81,D98,K98) -> 1 | X8: =SUM(X25,X42,X59,X81,E98,L98) -> 0 | Y8: 73
A9: 2024-12-22 | B9: 77 | C9: 0 | D9: 1 | E9: 78 | F9: =SUM(F26,F43,F60,F82) -> 0 | G9: =SUM(G26,G82) -> 0 | H9: =SUM(H26,H43,H60,H82) -> 0 | I9: 0 | J9: =SUM(J26,J43,J60,J82) -> 2 | K9: =SUM(K26,K43,K60,K82) -> 0 | L9: =SUM(L26,L43,L60,L82) -> 0 | M9: 2 | N9: =SUM(N26,N43,N60,N82) -> 2 | O9: =SUM(O26,O43,O60,O82) -> 0 | P9: =SUM(P26,P43,P60,P82) -> 0 | Q9: 2 | R9: =SUM(R26,R43,R60,R82) -> 8 | S9: =SUM(S26,S43,S60,S82) -> 0 | T9: =SUM(T26,T43,T60,T82) -> 0 | U9: 8 | V9: =SUM(V26,V43,V60,B99,C99,I99,J99) -> 65 | W9: =SUM(W26,W43,W60,W82,D99,K99) -> 0 | X9: =SUM(X26,X43,X60,X82,E99,L99) -> 1 | Y9: 66
A10: 2025-01-22 | B10: =SUM(F10,J10,N10,R10,V10) -> 99 | C10: 3 | D10: 4 | E10: 106 | F10: =SUM(F27,F44,F61,F83) -> 0 | G10: =SUM(G27,G83) -> 0 | H10: =SUM(H27,H44,H61,H83) -> 0 | I10: 0 | J10: =SUM(J27,J44,J61,J83) -> 2 | K10: =SUM(K27,K44,K61,K83) -> 0 | L10: =SUM(L27,L44,L61,L83) -> 0 | M10: 2 | N10: =SUM(N27,N44,N61,N83) -> 3 | O10: =SUM(O27,O44,O61,O83) -> 0 | P10: =SUM(P27,P44,P61,P83) -> 0 | Q10: 3 | R10: =SUM(R27,R44,R61,R83) -> 8 | S10: =SUM(S27,S44,S61,S83) -> 1 | T10: =SUM(T27,T44,T61,T83) -> 2 | U10: 11 | V10: =SUM(V27,V44,V61,B100,C100,I100,J100) -> 86 | W10: =SUM(W27,W44,W61,W83,D100,K100) -> 2 | X10: =SUM(X27,X44,X61,X83,E100,L100) -> 2 | Y10: 90
A11: 2025-02-22 | B11: =SUM(F11,J11,N11,R11,V11) -> 89 | C11: 1 | D11: 1 | E11: 91 | F11: =SUM(F28,F45,F62,F84) -> 0 | G11: =SUM(G28,G84) -> 0 | H11: =SUM(H28,H45,H62,H84) -> 0 | I11: 0 | J11: =SUM(J28,J45,J62,J84) -> 2 | K11: =SUM(K28,K45,K62,K84) -> 0 | L11: =SUM(L28,L45,L62,L84) -> 1 | M11: 3 | N11: =SUM(N28,N45,N62,N84) -> 4 | O11: =SUM(O28,O45,O62,O84) -> 0 | P11: =SUM(P28,P45,P62,P84) -> 0 | Q11: 4 | R11: =SUM(R28,R45,R62,R84) -> 5 | S11: =SUM(S28,S45,S62,S84) -> 1 | T11: =SUM(T28,T45,T62,T84) -> 0 | U11: 6 | V11: =SUM(V28,V45,V62,B101,C101,I101,J101,V84) -> 78 | W11: =SUM(W28,W45,W62,W84,D101,K101) -> 0 | X11: =SUM(X28,X45,X62,X84,E101,L101) -> 0 | Y11: 78
A12: 2025-03-22 | B12: =SUM(F12,J12,N12,R12,V12) -> 84 | C12: 0 | D12: 0 | E12: 84 | F12: =SUM(F29,F46,F63,F85) -> 0 | G12: =SUM(G29,G85) -> 0 | H12: =SUM(H29,H46,H63,H85) -> 0 | I12: 0 | J12: =SUM(J29,J46,J63,J85) -> 2 | K12: =SUM(K29,K46,K63,K85) -> 0 | L12: =SUM(L29,L46,L63,L85) -> 0 | M12: 2 | N12: =SUM(N29,N46,N63,N85) -> 1 | O12: =SUM(O29,O46,O63,O85) -> 0 | P12: =SUM(P29,P46,P63,P85) -> 0 | Q12: 1 | R12: =SUM(R29,R46,R63,R85) -> 5 | S12: =SUM(S29,S46,S63,S85) -> 0 | T12: =SUM(T29,T46,T63,T85) -> 0 | U12: 5 | V12: =SUM(V29,V46,V63,B102,C102,I102,J102,V85) -> 76 | W12: =SUM(W29,W46,W63,W85,D102,K102) -> 0 | X12: =SUM(X29,X46,X63,X85,E102,L102) -> 0 | Y12: 76
A13: 2025-04-22 | B13: =SUM(F13,J13,N13,R13,V13) -> 71 | C13: =SUM(G13,K13,O13,S13,W13) -> 0 | D13: =SUM(H13,L13,P13,T13,X13) -> 0 | E13: =SUM(B13:D13) -> 71 | F13: =SUM(F30,F47,F64,F86) -> 0 | G13: =SUM(G30,G86) -> 0 | H13: =SUM(H30,H47,H64,H86) -> 0 | I13: 0 | J13: =SUM(J30,J47,J64,J86) -> 3 | K13: =SUM(K30,K47,K64,K86) -> 0 | L13: =SUM(L30,L47,L64,L86) -> 0 | M13: =SUM(J13:L13) -> 3 | N13: =SUM(N30,N47,N64,N86) -> 1 | O13: =SUM(O30,O47,O64,O86) -> 0 | P13: =SUM(P30,P47,P64,P86) -> 0 | Q13: =SUM(N13:P13) -> 1 | R13: =SUM(R30,R47,R64,R86) -> 4 | S13: =SUM(S30,S47,S64,S86) -> 0 | T13: =SUM(T30,T47,T64,T86) -> 0 | U13: =SUM(R13:T13) -> 4 | V13: =SUM(V30,V47,V64,B103,C103,I103,J103,V86) -> 63 | W13: =SUM(W30,W47,W64,W86,D103,K103) -> 0 | X13: =SUM(X30,X47,X64,X86,E103,L103) -> 0 | Y13: =SUM(V13:X13) -> 63
A14: 2025-05-22 | B14: =SUM(F14,J14,N14,R14,V14) -> 67 | C14: 0 | D14: 0 | E14: 67 | F14: =SUM(F30,F50,F67,F89) -> 0 | G14: =SUM(G30,G89) -> 0 | H14: =SUM(H30,H50,H67,H89) -> 0 | I14: 0 | J14: =SUM(J30,J50,J67,J89) -> 3 | K14: =SUM(K30,K50,K67,K89) -> 0 | L14: =SUM(L30,L50,L67,L89) -> 0 | M14: 3 | N14: =SUM(N30,N50,N67,N89) -> 1 | O14: =SUM(O30,O50,O67,O89) -> 0 | P14: =SUM(P30,P50,P67,P89) -> 0 | Q14: 1 | R14: =SUM(R30,R50,R67,R89) -> 0 | S14: =SUM(S30,S50,S67,S89) -> 0 | T14: =SUM(T30,T50,T67,T89) -> 0 | U14: 0 | V14: =SUM(V30,V47,V64,B103,C103,I103,J103,V86) -> 63 | W14: =SUM(W30,W47,W64,W86,D103,K103) -> 0 | X14: =SUM(X30,X47,X64,X86,E103,L103) -> 0 | Y14: =SUM(V14:X14) -> 63
A15: 2025-06-22 | B15: =SUM(F15,J15,N15,R15,V15) -> 119 | C15: 0 | D15: 0 | E15: =SUM(B15:D15) -> 119 | F15: =SUM(F31,F48,F65,F87) -> 0 | G15: =SUM(G31,G87) -> 0 | H15: =SUM(H31,H48,H65,H87) -> 0 | I15: =SUM(I31,I48,I65,I87) -> 0 | J15: =SUM(J31,J48,J65,J87) -> 2 | K15: =SUM(K31,K48,K65,K87) -> 0 | L15: =SUM(L31,L48,L65,L87) -> 0 | M15: =SUM(J15:L15) -> 2 | N15: =SUM(N31,N48,N65,N87) -> 1 | O15: =SUM(O31,O48,O65,O87) -> 0 | P15: =SUM(P31,P48,P65,P87) -> 0 | Q15: 1 | R15: =SUM(R31,R48,R65,R87) -> 2 | S15: =SUM(S31,S48,S65,S87) -> 0 | T15: =SUM(T31,T48,T65,T87) -> 0 | U15: 2 | V15: =SUM(V31,V48,V65,B104,C104,I104,J104,V87) -> 114 | W15: =SUM(W31,W48,W65,W87,D104,K104) -> 0 | X15: =SUM(X31,X48,X65,X87,E104,L104) -> 0 | Y15: =SUM(V15:X15) -> 114
A16: 2025-07-22 | B16: =SUM(F16,J16,N16,R16,V16) -> 205 | C16: =SUM(G16,K16,O16,S16,W16) -> 0 | D16: =SUM(H16,L16,P16,T16,X16) -> 4 | E16: =SUM(B16:D16) -> 209 | F16: =SUM(F33,F50,F67,F89) -> 0 | G16: =SUM(G33,G89) -> 0 | H16: =SUM(H33,H50,H67,H89) -> 0 | I16: =SUM(I33,I50,I67,I89) -> 0 | J16: =SUM(J33,J50,J67,J89) -> 1 | K16: =SUM(K33,K50,K67,K89) -> 0 | L16: =SUM(L33,L50,L67,L89) -> 0 | M16: =SUM(J16:L16) -> 1 | N16: =SUM(N33,N50,N67,N89) -> 1 | O16: =SUM(O33,O50,O67,O89) -> 0 | P16: =SUM(P33,P50,P67,P89) -> 0 | Q16: =SUM(N16:P16) -> 1 | R16: =SUM(R33,R50,R67,R89) -> 0 | S16: =SUM(S33,S50,S67,S89) -> 0 | T16: =SUM(T33,T50,T67,T89) -> 0 | U16: =SUM(R16:T16) -> 0 | V16: =SUM(V33,V50,V67,B106,C106,I106,J106,V89) -> 203 | W16: =SUM(W33,W50,W67,W89,D106,K106) -> 0 | X16: =SUM(X33,X50,X67,X89,E106,L106) -> 4 | Y16: =SUM(V16:X16) -> 207
A17: 2025-08-22 | B17: =SUM(F17,J17,N17,R17,V17) -> 140 | C17: =SUM(G17,K17,O17,S17,W17) -> 0 | D17: =SUM(H17,L17,P17,T17,X17) -> 1 | E17: =SUM(B17:D17) -> 141 | F17: =SUM(F35,F52,F68,F91) -> 0 | G17: =SUM(G35,G91) -> 0 | H17: =SUM(H35,H52,H68,H91) -> 0 | I17: =SUM(I35,I52,I68,I91) -> 0 | J17: =SUM(J34,J51,J68,J90) -> 2 | K17: =SUM(K35,K52,K68,K91) -> 0 | L17: =SUM(L34,L51,L68,L90) -> 0 | M17: =SUM(J17:L17) -> 2 | N17: =SUM(N35,N52,N68,N91) -> 0 | O17: =SUM(O35,O52,O68,O91) -> 0 | P17: =SUM(P35,P52,P68,P91) -> 0 | Q17: =SUM(N17:P17) -> 0 | R17: =SUM(R34,R51,R68,R90) -> 3 | S17: =SUM(S34,S51,S68,S90) -> 0 | T17: =SUM(T34,T51,T68,T90) -> 1 | U17: =SUM(R17:T17) -> 4 | V17: =SUM(V34,V51,V68,B107,C107,I107,J107,V90) -> 135 | W17: =SUM(W34,W51,W68,W90,D107,K107) -> 0 | X17: =SUM(X34,X51,X68,X90,E107,L107) -> 0 | Y17: =SUM(V17:X17) -> 135
A19: FT-D2 to FT-D2 Transfer Summary
A20: Total | F20: NW Alberta and NE BC | J20: NE Alberta | N20: Edmonton and Area | R20: SW Alberta | V20: SE Alberta
A21: Month | B21: Approved | C21: Denied | D21: Cancelled | E21: Total | F21: Approved | G21: Denied | H21: Cancelled | I21: Total | J21: Approved | K21: Denied | L21: Cancelled | M21: Total | N21: Approved | O21: Denied | P21: Cancelled | Q21: Total | R21: Approved | S21: Denied | T21: Cancelled | U21: Total | V21: Approved | W21: Denied | X21: Cancelled | Y21: Total
A22: 2024-08-22 | B22: =SUM(F22,J22,N22,R22,V22) -> 7 | C22: =SUM(G22,K22,O22,S22,W22) -> 0 | D22: =SUM(H22,L22,P22,T22,X22) -> 0 | E22: =SUM(B22:D22) -> 7 | F22: 0 | G22: 0 | H22: 0 | I22: =SUM(F22:H22) -> 0 | J22: 2 | K22: 0 | L22: 0 | M22: =SUM(J22:L22) -> 2 | N22: 1 | O22: 0 | P22: 0 | Q22: =SUM(N22:P22) -> 1 | R22: 0 | S22: 0 | T22: 0 | U22: =SUM(R22:T22) -> 0 | V22: 4 | W22: 0 | X22: 0 | Y22: =SUM(V22:X22) -> 4
A23: 2024-09-22 | B23: 6 | C23: 0 | D23: 0 | E23: 6 | F23: 1 | G23: 0 | H23: 0 | I23: 1 | J23: 1 | K23: 0 | L23: 0 | M23: 1 | N23: 1 | O23: 0 | P23: 0 | Q23: 1 | R23: 0 | S23: 0 | T23: 0 | U23: 0 | V23: 3 | W23: 0 | X23: 0 | Y23: 3
A24: 2024-10-22 | B24: 9 | C24: 1 | D24: 0 | E24: 10 | F24: 0 | G24: 0 | H24: 0 | I24: 0 | J24: 3 | K24: 0 | L24: 0 | M24: 3 | N24: 1 | O24: 1 | P24: 0 | Q24: 2 | R24: 0 | S24: 0 | T24: 0 | U24: 0 | V24: 5 | W24: 0 | X24: 0 | Y24: 5
A25: 2024-11-22 | B25: 9 | C25: 3 | D25: 0 | E25: 12 | F25: 0 | G25: 0 | H25: 0 | I25: 0 | J25: 2 | K25: 2 | L25: 0 | M25: 4 | N25: 1 | O25: 0 | P25: 0 | Q25: 1 | R25: 0 | S25: 0 | T25: 0 | U25: 0 | V25: 6 | W25: 1 | X25: 0 | Y25: 7
A26: 2024-12-22 | B26: 8 | C26: 0 | D26: 0 | E26: 8 | F26: 0 | G26: 0 | H26: 0 | I26: 0 | J26: 2 | K26: 0 | L26: 0 | M26: 2 | N26: 2 | O26: 0 | P26: 0 | Q26: 2 | R26: 0 | S26: 0 | T26: 0 | U26: 0 | V26: 4 | W26: 0 | X26: 0 | Y26: 4
A27: 2025-01-22 | B27: 7 | C27: 0 | D27: 0 | E27: 7 | F27: 0 | G27: 0 | H27: 0 | I27: 0 | J27: 2 | K27: 0 | L27: 0 | M27: 2 | N27: 2 | O27: 0 | P27: 0 | Q27: 2 | R27: 0 | S27: 0 | T27: 0 | U27: 0 | V27: 3 | W27: 0 | X27: 0 | Y27: 3
A28: 2025-02-22 | B28: 11 | C28: 1 | D28: 1 | E28: 13 | F28: 0 | G28: 0 | H28: 0 | I28: 0 | J28: 2 | K28: 0 | L28: 1 | M28: 3 | N28: 4 | O28: 0 | P28: 0 | Q28: 4 | R28: 2 | S28: 1 | T28: 0 | U28: 3 | V28: 3 | W28: 0 | X28: 0 | Y28: 3
A29: 2025-03-22 | B29: 7 | C29: 0 | D29: 0 | E29: 7 | F29: 0 | G29: 0 | H29: 0 | I29: 0 | J29: 2 | K29: 0 | L29: 0 | M29: 2 | N29: 1 | O29: 0 | P29: 0 | Q29: 1 | R29: 0 | S29: 0 | T29: 0 | U29: 0 | V29: 4 | W29: 0 | X29: 0 | Y29: 4
A30: 2025-04-22 | B30: =SUM(F30,J30,N30,R30,V30) -> 5 | C30: =SUM(G30,K30,O30,S30,W30) -> 0 | D30: =SUM(H30,L30,P30,T30,X30) -> 0 | E30: =SUM(B30:D30) -> 5 | F30: 0 | G30: 0 | H30: 0 | I30: =SUM(F30:H30) -> 0 | J30: 3 | K30: 0 | L30: 0 | M30: =SUM(J30:L30) -> 3 | N30: 1 | O30: 0 | P30: 0 | Q30: =SUM(N30:P30) -> 1 | R30: 0 | S30: 0 | T30: 0 | U30: =SUM(R30:T30) -> 0 | V30: 1 | W30: 0 | X30: 0 | Y30: =SUM(V30:X30) -> 1
A31: 2025-05-22 | B31: 11 | C31: 0 | D31: 0 | E31: 11 | F31: 0 | G31: 0 | H31: 0 | I31: 0 | J31: 2 | K31: 0 | L31: 0 | M31: 2 | N31: 1 | O31: 0 | P31: 0 | Q31: 1 | R31: 2 | S31: 0 | T31: 0 | U31: 2 | V31: 6 | W31: 0 | X31: 0 | Y31: 6
A32: 2025-06-22 | B32: 36 | C32: 0 | D32: 7 | E32: 43 | F32: 0 | G32: 0 | H32: 0 | I32: 0 | J32: 3 | K32: 0 | L32: 5 | M32: 8 | N32: 20 | O32: 0 | P32: 2 | Q32: 22 | R32: 0 | S32: 0 | T32: 0 | U32: 0 | V32: 13 | W32: 0 | X32: 0 | Y32: 13
A33: 2025-07-22 | B33: =SUM(F33,J33,N33,R33,V33) -> 9 | C33: =SUM(G33,K33,O33,S33,W33) -> 0 | D33: =SUM(H33,L33,P33,T33,X33) -> 0 | E33: =SUM(B33:D33) -> 9 | F33: 0 | G33: 0 | H33: 0 | I33: =SUM(F33:H33) -> 0 | J33: 1 | K33: 0 | L33: 0 | M33: =SUM(J33:L33) -> 1 | N33: 1 | O33: 0 | P33: 0 | Q33: =SUM(N33:P33) -> 1 | R33: 0 | S33: 0 | T33: 0 | U33: =SUM(R33:T33) -> 0 | V33: 7 | W33: 0 | X33: 0 | Y33: =SUM(V33:X33) -> 7
A34: 2025-08-22 | B34: =SUM(F34,J34,N34,R34,V34) -> 5 | C34: =SUM(G34,K34,O34,S34,W34) -> 0 | D34: =SUM(H34,L34,P34,T34,X34) -> 0 | E34: =SUM(B34:D34) -> 5 | F34: 0 | G34: 0 | H34: 0 | I34: =SUM(F34:H34) -> 0 | J34: 2 | K34: 0 | L34: 0 | M34: =SUM(J34:L34) -> 2 | N34: 0 | O34: 0 | P34: 0 | Q34: =SUM(N34:P34) -> 0 | R34: 0 | S34: 0 | T34: 0 | U34: =SUM(R34:T34) -> 0 | V34: 3 | W34: 0 | X34: 0 | Y34: =SUM(V34:X34) -> 3
A36: FT-D3 to FT-D3 Transfer Summary
A37: Total | F37: NW Alberta and NE BC | J37: NE Alberta | N37: Edmonton and Area | R37: SW Alberta | V37: SE Alberta
A38: Month | B38: Approved | C38: Denied | D38: Cancelled | E38: Total | F38: Approved | G38: Denied | H38: Cancelled | I38: Total | J38: Approved | K38: Denied | L38: Cancelled | M38: Total | N38: Approved | O38: Denied | P38: Cancelled | Q38: Total | R38: Approved | S38: Denied | T38: Cancelled | U38: Total | V38: Approved | W38: Denied | X38: Cancelled | Y38: Total
A39: 2024-08-22 | B39: =SUM(F39,J39,N39,R39,V39) -> 1 | C39: =SUM(G39,K39,O39,S39,W39) -> 0 | D39: =SUM(H39,L39,P39,T39,X39) -> 0 | E39: =SUM(B39:D39) -> 1 | F39: 0 | G39: 0 | H39: 0 | I39: =SUM(F39:H39) -> 0 | J39: 0 | K39: 0 | L39: 0 | M39: =SUM(J39:L39) -> 0 | N39: 1 | O39: 0 | P39: 0 | Q39: =SUM(N39:P39) -> 1 | R39: 0 | S39: 0 | T39: 0 | U39: =SUM(R39:T39) -> 0 | V39: 0 | W39: 0 | X39: 0 | Y39: =SUM(V39:X39) -> 0
A40: 2024-09-22 | B40: 0 | C40: 0 | D40: 0 | E40: 0 | F40: 0 | G40: 0 | H40: 0 | I40: 0 | J40: 0 | K40: 0 | L40: 0 | M40: 0 | N40: 0 | O40: 0 | P40: 0 | Q40: 0 | R40: 0 | S40: 0 | T40: 0 | U40: 0 | V40: 0 | W40: 0 | X40: 0 | Y40: 0
A41: 2024-10-22 | B41: 0 | C41: 0 | D41: 0 | E41: 0 | F41: 0 | G41: 0 | H41: 0 | I41: 0 | J41: 0 | K41: 0 | L41: 0 | M41: 0 | N41: 0 | O41: 0 | P41: 0 | Q41: 0 | R41: 0 | S41: 0 | T41: 0 | U41: 0 | V41: 0 | W41: 0 | X41: 0 | Y41: 0
A42: 2024-11-22 | B42: 0 | C42: 0 | D42: 0 | E42: 0 | F42: 0 | G42: 0 | H42: 0 | I42: 0 | J42: 0 | K42: 0 | L42: 0 | M42: 0 | N42: 0 | O42: 0 | P42: 0 | Q42: 0 | R42: 0 | S42: 0 | T42: 0 | U42: 0 | V42: 0 | W42: 0 | X42: 0 | Y42: 0
A43: 2024-12-22 | B43: 0 | C43: 0 | D43: 0 | E43: 0 | F43: 0 | G43: 0 | H43: 0 | I43: 0 | J43: 0 | K43: 0 | L43: 0 | M43: 0 | N43: 0 | O43: 0 | P43: 0 | Q43: 0 | R43: 0 | S43: 0 | T43: 0 | U43: 0 | V43: 0 | W43: 0 | X43: 0 | Y43: 0
A44: 2025-01-22 | B44: 1 | C44: 0 | D44: 0 | E44: 1 | F44: 0 | G44: 0 | H44: 0 | I44: 0 | J44: 0 | K44: 0 | L44: 0 | M44: 0 | N44: 1 | O44: 0 | P44: 0 | Q44: 1 | R44: 0 | S44: 0 | T44: 0 | U44: 0 | V44: 0 | W44: 0 | X44: 0 | Y44: 0
A45: 2025-02-22 | B45: 0 | C45: 0 | D45: 0 | E45: 0 | F45: 0 | G45: 0 | H45: 0 | I45: 0 | J45: 0 | K45: 0 | L45: 0 | M45: 0 | N45: 0 | O45: 0 | P45: 0 | Q45: 0 | R45: 0 | S45: 0 | T45: 0 | U45: 0 | V45: 0 | W45: 0 | X45: 0 | Y45: 0
A46: 2025-03-22 | B46: 0 | C46: 0 | D46: 0 | E46: 0 | F46: 0 | G46: 0 | H46: 0 | I46: 0 | J46: 0 | K46: 0 | L46: 0 | M46: 0 | N46: 0 | O46: 0 | P46: 0 | Q46: 0 | R46: 0 | S46: 0 | T46: 0 | U46: 0 | V46: 0 | W46: 0 | X46: 0 | Y46: 0
A47: 2025-04-22 | B47: =SUM(F47,J47,N47,R47,V47) -> 0 | C47: =SUM(G47,K47,O47,S47,W47) -> 0 | D47: =SUM(H47,L47,P47,T47,X47) -> 0 | E47: =SUM(B47:D47) -> 0 | F47: 0 | G47: 0 | H47: 0 | I47: =SUM(F47:H47) -> 0 | J47: 0 | K47: 0 | L47: 0 | M47: =SUM(J47:L47) -> 0 | N47: 0 | O47: 0 | P47: 0 | Q47: =SUM(N47:P47) -> 0 | R47: 0 | S47: 0 | T47: 0 | U47: =SUM(R47:T47) -> 0 | V47: 0 | W47: 0 | X47: 0 | Y47: =SUM(V47:X47) -> 0
A48: 2025-05-22 | B48: 0 | C48: 0 | D48: 0 | E48: 0 | F48: 0 | G48: 0 | H48: 0 | I48: 0 | J48: 0 | K48: 0 | L48: 0 | M48: 0 | N48: 0 | O48: 0 | P48: 0 | Q48: 0 | R48: 0 | S48: 0 | T48: 0 | U48: 0 | V48: 0 | W48: 0 | X48: 0 | Y48: 0
A49: 2025-06-22 | B49: 0 | C49: 0 | D49: 0 | E49: 0 | F49: 0 | G49: 0 | H49: 0 | I49: 0 | J49: 0 | K49: 0 | L49: 0 | M49: 0 | N49: 0 | O49: 0 | P49: 0 | Q49: 0 | R49: 0 | S49: 0 | T49: 0 | U49: 0 | V49: 0 | W49: 0 | X49: 0 | Y49: 0
A50: 2025-07-22 | B50: =SUM(F50,J50,N50,R50,V50) -> 0 | C50: =SUM(G50,K50,O50,S50,W50) -> 0 | D50: =SUM(H50,L50,P50,T50,X50) -> 0 | E50: =SUM(B50:D50) -> 0 | F50: 0 | G50: 0 | H50: 0 | I50: =SUM(F50:H50) -> 0 | J50: 0 | K50: 0 | L50: 0 | M50: =SUM(J50:L50) -> 0 | N50: 0 | O50: 0 | P50: 0 | Q50: =SUM(N50:P50) -> 0 | R50: 0 | S50: 0 | T50: 0 | U50: =SUM(R50:T50) -> 0 | V50: 0 | W50: 0 | X50: 0 | Y50: =SUM(V50:X50) -> 0
A51: 2025-08-22 | B51: =SUM(F51,J51,N51,R51,V51) -> 0 | C51: =SUM(G51,K51,O51,S51,W51) -> 0 | D51: =SUM(H51,L51,P51,T51,X51) -> 0 | E51: =SUM(B51:D51) -> 0 | F51: 0 | G51: 0 | H51: 0 | I51: =SUM(F51:H51) -> 0 | J51: 0 | K51: 0 | L51: 0 | M51: =SUM(J51:L51) -> 0 | N51: 0 | O51: 0 | P51: 0 | Q51: =SUM(N51:P51) -> 0 | R51: 0 | S51: 0 | T51: 0 | U51: =SUM(R51:T51) -> 0 | V51: 0 | W51: 0 | X51: 0 | Y51: =SUM(V51:X51) -> 0
A53: FT-D1 to FT-D2 Transfer Summary
A54: Total | F54: NW Alberta and NE BC | J54: NE Alberta | N54: Edmonton and Area | R54: SW Alberta | V54: SE Alberta
A55: Month | B55: Approved | C55: Denied | D55: Cancelled | E55: Total | F55: Approved | G55: Denied | H55: Cancelled | I55: Total | J55: Approved | K55: Denied | L55: Cancelled | M55: Total | N55: Approved | O55: Denied | P55: Cancelled | Q55: Total | R55: Approved | S55: Denied | T55: Cancelled | U55: Total | V55: Approved | W55: Denied | X55: Cancelled | Y55: Total
A56: 2024-08-22 | B56: =SUM(F56,J56,N56,R56,V56) -> 0 | C56: =SUM(G56,K56,O56,S56,W56) -> 0 | D56: =SUM(H56,L56,P56,T56,X56) -> 0 | E56: =SUM(B56:D56) -> 0 | F56: 0 | G56: 0 | H56: 0 | I56: 0 | J56: 0 | K56: 0 | L56: 0 | M56: 0 | N56: 0 | O56: 0 | P56: 0 | Q56: 0 | R56: 0 | S56: 0 | T56: 0 | U56: 0 | V56: 0 | W56: 0 | X56: 0 | Y56: =SUM(X56,W56,V56) -> 0
A57: 2024-09-22 | B57: 0 | C57: 0 | D57: 0 | E57: 0 | F57: 0 | G57: 0 | H57: 0 | I57: 0 | J57: 0 | K57: 0 | L57: 0 | M57: 0 | N57: 0 | O57: 0 | P57: 0 | Q57: 0 | R57: 0 | S57: 0 | T57: 0 | U57: 0 | V57: 0 | W57: 0 | X57: 0 | Y57: 0
A58: 2024-10-22 | B58: 0 | C58: 0 | D58: 0 | E58: 0 | F58: 0 | G58: 0 | H58: 0 | I58: 0 | J58: 0 | K58: 0 | L58: 0 | M58: 0 | N58: 0 | O58: 0 | P58: 0 | Q58: 0 | R58: 0 | S58: 0 | T58: 0 | U58: 0 | V58: 0 | W58: 0 | X58: 0 | Y58: 0
A59: 2024-11-22 | B59: 0 | C59: 0 | D59: 0 | E59: 0 | F59: 0 | G59: 0 | H59: 0 | I59: 0 | J59: 0 | K59: 0 | L59: 0 | M59: 0 | N59: 0 | O59: 0 | P59: 0 | Q59: 0 | R59: 0 | S59: 0 | T59: 0 | U59: 0 | V59: 0 | W59: 0 | X59: 0 | Y59: 0
A60: 2024-12-22 | B60: 0 | C60: 0 | D60: 0 | E60: 0 | F60: 0 | G60: 0 | H60: 0 | I60: 0 | J60: 0 | K60: 0 | L60: 0 | M60: 0 | N60: 0 | O60: 0 | P60: 0 | Q60: 0 | R60: 0 | S60: 0 | T60: 0 | U60: 0 | V60: 0 | W60: 0 | X60: 0 | Y60: 0
A61: 2025-01-22 | B61: 0 | C61: 0 | D61: 0 | E61: 0 | F61: 0 | G61: 0 | H61: 0 | I61: 0 | J61: 0 | K61: 0 | L61: 0 | M61: 0 | N61: 0 | O61: 0 | P61: 0 | Q61: 0 | R61: 0 | S61: 0 | T61: 0 | U61: 0 | V61: 0 | W61: 0 | X61: 0 | Y61: 0
A62: 2025-02-22 | B62: 0 | C62: 0 | D62: 0 | E62: 0 | F62: 0 | G62: 0 | H62: 0 | I62: 0 | J62: 0 | K62: 0 | L62: 0 | M62: 0 | N62: 0 | O62: 0 | P62: 0 | Q62: 0 | R62: 0 | S62: 0 | T62: 0 | U62: 0 | V62: 0 | W62: 0 | X62: 0 | Y62: 0
A63: 2025-03-22 | B63: 0 | C63: 0 | D63: 0 | E63: 0 | F63: 0 | G63: 0 | H63: 0 | I63: 0 | J63: 0 | K63: 0 | L63: 0 | M63: 0 | N63: 0 | O63: 0 | P63: 0 | Q63: 0 | R63: 0 | S63: 0 | T63: 0 | U63: 0 | V63: 0 | W63: 0 | X63: 0 | Y63: 0
A64: 2025-04-22 | B64: =SUM(F64,J64,N64,R64,V64) -> 0 | C64: =SUM(G64,K64,O64,S64,W64) -> 0 | D64: =SUM(H64,L64,P64,T64,X64) -> 0 | E64: =SUM(B64:D64) -> 0 | F64: 0 | G64: 0 | H64: 0 | I64: 0 | J64: 0 | K64: 0 | L64: 0 | M64: 0 | N64: 0 | O64: 0 | P64: 0 | Q64: 0 | R64: 0 | S64: 0 | T64: 0 | U64: 0 | V64: 0 | W64: 0 | X64: 0 | Y64: =SUM(X64,W64,V64) -> 0
A65: 2025-05-22 | B65: 0 | C65: 0 | D65: 0 | E65: 0 | F65: 0 | G65: 0 | H65: 0 | I65: 0 | J65: 0 | K65: 0 | L65: 0 | M65: 0 | N65: 0 | O65: 0 | P65: 0 | Q65: 0 | R65: 0 | S65: 0 | T65: 0 | U65: 0 | V65: 0 | W65: 0 | X65: 0 | Y65: 0
A66: 2025-06-22 | B66: 9 | C66: 0 | D66: 1 | E66: 10 | F66: 0 | G66: 0 | H66: 0 | I66: 0 | J66: 0 | K66: 0 | L66: 0 | M66: 0 | N66: 0 | O66: 0 | P66: 0 | Q66: 0 | R66: 0 | S66: 0 | T66: 0 | U66: 0 | V66: 9 | W66: 0 | X66: 1 | Y66: 10
A67: 2025-07-22 | B67: =SUM(F67,J67,N67,R67,V67) -> 12 | C67: =SUM(G67,K67,O67,S67,W67) -> 0 | D67: =SUM(H67,L67,P67,T67,X67) -> 0 | E67: =SUM(B67:D67) -> 12 | F67: 0 | G67: 0 | H67: 0 | I67: 0 | J67: 0 | K67: 0 | L67: 0 | M67: 0 | N67: 0 | O67: 0 | P67: 0 | Q67: 0 | R67: 0 | S67: 0 | T67: 0 | U67: 0 | V67: 12 | W67: 0 | X67: 0 | Y67: =SUM(X67,W67,V67) -> 12
A68: 2025-08-22 | B68: =SUM(F68,J68,N68,R68,V68) -> 0 | C68: =SUM(G68,K68,O68,S68,W68) -> 0 | D68: =SUM(H68,L68,P68,T68,X68) -> 0 | E68: =SUM(B68:D68) -> 0 | F68: 0 | G68: 0 | H68: 0 | I68: 0 | J68: 0 | K68: 0 | L68: 0 | M68: 0 | N68: 0 | O68: 0 | P68: 0 | Q68: 0 | R68: 0 | S68: 0 | T68: 0 | U68: 0 | V68: 0 | W68: 0 | X68: 0 | Y68: =SUM(X68,W68,V68) -> 0
A75: FT-D2 to FT-D1 Transfer Summary
A76: Total | F76: NW Alberta and NE BC | J76: NE Alberta | N76: Edmonton and Area | R76: SW Alberta | V76: SE Alberta
A77: Month | B77: Approved | C77: Denied | D77: Cancelled | E77: Total | F77: Approved | G77: Denied | H77: Cancelled | I77: Total | J77: Approved | K77: Denied | L77: Cancelled | M77: Total | N77: Approved | O77: Denied | P77: Cancelled | Q77: Total | R77: Approved | S77: Denied | T77: Cancelled | U77: Total | V77: Approved | W77: Denied | X77: Cancelled | Y77: Total
A78: 2024-08-22 | B78: =SUM(F78,J78,N78,R78,V78) -> 0 | C78: =SUM(G78,K78,O78,S78,W78) -> 0 | D78: =SUM(H78,L78,P78,T78,X78) -> 0 | E78: =SUM(B78:D78) -> 0 | F78: 0 | G78: 0 | H78: 0 | I78: 0 | J78: 0 | K78: 0 | L78: 0 | M78: 0 | N78: 0 | O78: 0 | P78: 0 | Q78: 0 | R78: 0 | S78: 0 | T78: 0 | U78: =SUM(R78:T78) -> 0 | V78: 0 | W78: 0 | X78: 0 | Y78: =SUM(V78:X78) -> 0
A79: 2024-09-22 | B79: 0 | C79: 0 | D79: 0 | E79: 0 | F79: 0 | G79: 0 | H79: 0 | I79: 0 | J79: 0 | K79: 0 | L79: 0 | M79: 0 | N79: 0 | O79: 0 | P79: 0 | Q79: 0 | R79: 0 | S79: 0 | T79: 0 | U79: 0 | V79: 0 | W79: 0 | X79: 0 | Y79: 0
A80: 2024-10-22 | B80: 0 | C80: 0 | D80: 0 | E80: 0 | F80: 0 | G80: 0 | H80: 0 | I80: 0 | J80: 0 | K80: 0 | L80: 0 | M80: 0 | N80: 0 | O80: 0 | P80: 0 | Q80: 0 | R80: 0 | S80: 0 | T80: 0 | U80: 0 | V80: 0 | W80: 0 | X80: 0 | Y80: 0
A81: 2024-11-22 | B81: 5 | C81: 0 | D81: 0 | E81: 5 | F81: 0 | G81: 0 | H81: 0 | I81: 0 | J81: 0 | K81: 0 | L81: 0 | M81: 0 | N81: 0 | O81: 0 | P81: 0 | Q81: 0 | R81: 1 | S81: 0 | T81: 0 | U81: 1 | V81: 4 | W81: 0 | X81: 0 | Y81: 4
A82: 2024-12-22 | B82: 11 | C82: 0 | D82: 0 | E82: 11 | F82: 0 | G82: 0 | H82: 0 | I82: 0 | J82: 0 | K82: 0 | L82: 0 | M82: 0 | N82: 0 | O82: 0 | P82: 0 | Q82: 0 | R82: 8 | S82: 0 | T82: 0 | U82: 8 | V82: 3 | W82: 0 | X82: 0 | Y82: 3
A83: 2025-01-22 | B83: 8 | C83: 3 | D83: 2 | E83: 13 | F83: 0 | G83: 0 | H83: 0 | I83: 0 | J83: 0 | K83: 0 | L83: 0 | M83: 0 | N83: 0 | O83: 0 | P83: 0 | Q83: 0 | R83: 8 | S83: 1 | T83: 2 | U83: 11 | V83: 0 | W83: 2 | X83: 0 | Y83: 2
A84: 2025-02-22 | B84: 3 | C84: 0 | D84: 0 | E84: 3 | F84: 0 | G84: 0 | H84: 0 | I84: 0 | J84: 0 | K84: 0 | L84: 0 | M84: 0 | N84: 0 | O84: 0 | P84: 0 | Q84: 0 | R84: 3 | S84: 0 | T84: 0 | U84: 3 | V84: 0 | W84: 0 | X84: 0 | Y84: 0
A85: 2025-03-22 | B85: 5 | C85: 0 | D85: 0 | E85: 5 | F85: 0 | G85: 0 | H85: 0 | I85: 0 | J85: 0 | K85: 0 | L85: 0 | M85: 0 | N85: 0 | O85: 0 | P85: 0 | Q85: 0 | R85: 5 | S85: 0 | T85: 0 | U85: 5 | V85: 0 | W85: 0 | X85: 0 | Y85: 0
A86: 2025-04-22 | B86: =SUM(F86,J86,N86,R86,V86) -> 4 | C86: =SUM(G86,K86,O86,S86,W86) -> 0 | D86: =SUM(H86,L86,P86,T86,X86) -> 0 | E86: =SUM(B86:D86) -> 4 | F86: 0 | G86: 0 | H86: 0 | I86: 0 | J86: 0 | K86: 0 | L86: 0 | M86: 0 | N86: 0 | O86: 0 | P86: 0 | Q86: 0 | R86: 4 | S86: 0 | T86: 0 | U86: =SUM(R86:T86) -> 4 | V86: 0 | W86: 0 | X86: 0 | Y86: =SUM(V86:X86) -> 0
A87: 2025-05-22 | B87: 0 | C87: 0 | D87: 0 | E87: 0 | F87: 0 | G87: 0 | H87: 0 | I87: 0 | J87: 0 | K87: 0 | L87: 0 | M87: 0 | N87: 0 | O87: 0 | P87: 0 | Q87: 0 | R87: 0 | S87: 0 | T87: 0 | U87: =SUM(R87:T87) -> 0 | V87: 0 | W87: 0 | X87: 0 | Y87: 0
A88: 2025-06-22 | B88: 0 | C88: 0 | D88: 0 | E88: 0 | F88: 0 | G88: 0 | H88: 0 | I88: 0 | J88: 0 | K88: 0 | L88: 0 | M88: 0 | N88: 0 | O88: 0 | P88: 0 | Q88: 0 | R88: 0 | S88: 0 | T88: 0 | U88: 0 | V88: 0 | W88: 0 | X88: 0 | Y88: 0
A89: 2025-07-22 | B89: =SUM(F89,J89,N89,R89,V89) -> 0 | C89: =SUM(G89,K89,O89,S89,W89) -> 0 | D89: =SUM(H89,L89,P89,T89,X89) -> 0 | E89: =SUM(B89:D89) -> 0 | F89: 0 | G89: 0 | H89: 0 | I89: 0 | J89: 0 | K89: 0 | L89: 0 | M89: 0 | N89: 0 | O89: 0 | P89: 0 | Q89: 0 | R89: 0 | S89: 0 | T89: 0 | U89: 0 | V89: 0 | W89: 0 | X89: 0 | Y89: =SUM(V89:X89) -> 0
A90: 2025-08-22 | B90: =SUM(F90,J90,N90,R90,V90) -> 3 | C90: =SUM(G90,K90,O90,S90,W90) -> 0 | D90: =SUM(H90,L90,P90,T90,X90) -> 1 | E90: =SUM(B90:D90) -> 4 | F90: 0 | G90: 0 | H90: 0 | I90: 0 | J90: 0 | K90: 0 | L90: 0 | M90: 0 | N90: 0 | O90: 0 | P90: 0 | Q90: 0 | R90: 3 | S90: 0 | T90: 1 | U90: =SUM(R90:T90) -> 4 | V90: 0 | W90: 0 | X90: 0 | Y90: =SUM(V90:X90) -> 0
A92: FT-D1 to FT-D1 Transfer Summary
A93: Empress to McNeill FT-D1 | H93: McNeill to Empress FT-D1
A94: Month | B94: Approved (Manual) | C94: Approved (ATP) | D94: Denied | E94: Cancelled | F94: Total | H94: Month | I94: Approved (Manual) | J94: Approved (ATP) | K94: Denied | L94: Cancelled | M94: Total
A95: 2024-08-22 | B95: 4 | C95: 10 | D95: 0 | E95: 0 | F95: =SUM(B95:E95) -> 14 | H95: 2024-08-22 | I95: 23 | J95: 26 | K95: 0 | L95: 0 | M95: =SUM(I95:L95) -> 49
A96: 2024-09-22 | B96: 9 | C96: 9 | D96: 0 | E96: 0 | F96: 18 | H96: 2024-09-22 | I96: 24 | J96: 14 | K96: 0 | L96: 0 | M96: 38
A97: 2024-10-22 | B97: 14 | C97: 20 | D97: 0 | E97: 0 | F97: 34 | H97: 2024-10-22 | I97: 12 | J97: 31 | K97: 0 | L97: 0 | M97: 43
A98: 2024-11-22 | B98: 13 | C98: 3 | D98: 0 | E98: 0 | F98: 16 | H98: 2024-11-22 | I98: 14 | J98: 36 | K98: 0 | L98: 0 | M98: 50
A99: 2024-12-22 | B99: 9 | C99: 7 | D99: 0 | E99: 0 | F99: 16 | H99: 2024-12-22 | I99: 18 | J99: 27 | K99: 0 | L99: 1 | M99: 46
A100: 2025-01-22 | B100: 7 | C100: 38 | D100: 0 | E100: 2 | F100: 47 | H100: 2025-01-22 | I100: 12 | J100: 26 | K100: 0 | L100: 0 | M100: 38
A101: 2025-02-22 | B101: 0 | C101: 56 | D101: 0 | E101: 0 | F101: 56 | H101: 2025-02-22 | I101: 0 | J101: 19 | K101: 0 | L101: 0 | M101: 19
A102: 2025-03-22 | B102: 1 | C102: 36 | D102: 0 | E102: 0 | F102: 37 | H102: 2025-03-22 | I102: 2 | J102: 33 | K102: 0 | L102: 0 | M102: 35
A103: 2025-04-22 | B103: 0 | C103: 30 | D103: 0 | E103: 0 | F103: =SUM(B103:E103) -> 30 | H103: 2025-04-22 | I103: 0 | J103: 32 | K103: 0 | L103: 0 | M103: =SUM(I103:L103) -> 32
A104: 2025-05-22 | B104: 3 | C104: 67 | D104: 0 | E104: 0 | F104: 70 | H104: 2025-05-22 | I104: 2 | J104: 36 | K104: 0 | L104: 0 | M104: 38
A105: 2025-06-22 | B105: 16 | C105: 121 | D105: 0 | E105: 2 | F105: 139 | H105: 2025-06-22 | I105: 17 | J105: 71 | K105: 0 | L105: 0 | M105: 88
A106: 2025-07-22 | B106: 17 | C106: 103 | D106: 0 | E106: 4 | F106: =SUM(B106:E106) -> 124 | H106: 2025-07-22 | I106: 13 | J106: 51 | K106: 0 | L106: 0 | M106: =SUM(I106:L106) -> 64
A107: 2025-08-22 | B107: 0 | C107: 107 | D107: 0 | E107: 0 | F107: =SUM(B107:E107) -> 107 | H107: 2025-08-22 | I107: 0 | J107: 25 | K107: 0 | L107: 0 | M107: =SUM(I107:L107) -> 25
A110: Cross Boundary Transfers
A111: Month | B111: Frequency | C111: Information
A112: 2023-06-01 | B112: N/A | C112: N/A
A113: 2024-08-01 | B113: N/A | C113: N/A
A114: 2024-09-01 | B114: N/A | C114: N/A
A115: 2024-10-01 | B115: 1 | C115: FT-D2 transfer request from NW Alberta and NE B.C. Area to Edmonton and Area was denied
A116: 2024-11-01 | B116: N/A | C116: N/A
A117: 2024-12-01 | B117: N/A | C117: N/A
A118: 2025-01-01 | B118: N/A | C118: N/A
A119: 2025-02-01 | B119: N/A | C119: N/A
A120: 2025-03-01 | B120: N/A | C120: N/A
A121: 2025-04-01 | B121: N/A | C121: N/A
A122: 2025-05-01 | B122: N/A | C122: N/A
A123: 2025-06-01 | B123: N/A | C123: N/A
A124: 2025-07-01 | B124: N/A | C124: N/A
A125: 2025-08-01 | B125: N/A | C125: N/A
A127: Notes:
A128: 1. Values represent the number of transfer requests processed in the specified month, regardless of effective date
A129: 2. Includes all "out and back" and "one-way" transfers
A130: 3. Out and back transfer requests are tallied as a single transaction
A131: 4. Transfers to storage are not included in totals
A132: 5. Transfers that cross a Delivery Design Area boundary are tallied in the area where the "To" location is situated
A133: 6. Cancelled transfer requests are initiated by the requester (customer, marketer etc.)
A134: 7. ATP is the acronym for Automated Transfer Process, requests that meet certain criteria may be approved automatically
A135: 8. Delivery Design Area boundaries are illustrated in the Design Methodology document on Customer Express (see NGTL/Regulatory/Facilities)
A136: http://www.tccustomerexpress.com/docs/ab_regulatory_facilities/Facilities%20Design%20Methodology%20Document%20-%20Revision%20May%2031,%202018_Oct%204.pdf

Sheet FT-D Transfers (Volume)
A1: FT-D Transfer Summary - Volume (GJ/d)
A2: Total | F2: NW Alberta and NE BC | J2: NE Alberta | N2: Edmonton and Area | R2: SW Alberta | V2: SE Alberta
A3: Month | B3: Approved | C3: Denied | D3: Cancelled | E3: Total | F3: Approved | G3: Denied | H3: Cancelled | I3: Total | J3: Approved | K3: Denied | L3: Cancelled | M3: Total | N3: Approved | O3: Denied | P3: Cancelled | Q3: Total | R3: Approved | S3: Denied | T3: Cancelled | U3: Total | V3: Approved | W3: Denied | X3: Cancelled | Y3: Total
A4: 2024-08-22 | B4: =SUM(F4,J4,N4,R4,V4) -> 2076734 | C4: =SUM(G4,K4,O4,S4,W4) -> 0 | D4: =SUM(H4,L4,P4,T4,X4) -> 6000 | E4: =SUM(B4:D4) -> 2082734 | F4: =SUM(F21,F38,F55,F80) -> 0 | G4: =SUM(G21,G38,G55,G80) -> 0 | H4: =SUM(H21,H38,H55,H80) -> 0 | I4: =SUM(F4:H4) -> 0 | J4: =SUM(J21,J38,J55,J80) -> 12500 | K4: =SUM(K21,K38,K55,K80) -> 0 | L4: =SUM(L21,L38,L55,L80) -> 0 | M4: =SUM(J4:L4) -> 12500 | N4: =SUM(N21,N38,N55,N80) -> 4130 | O4: =SUM(O21,O40,O55,O80) -> 0 | P4: =SUM(P21,P38,P55,P80) -> 0 | Q4: =SUM(N4:P4) -> 4130 | R4: =SUM(R21,R38,R55,R80) -> 0 | S4: =SUM(S21,S38,S55,S80) -> 0 | T4: =SUM(T21,T38,T55,T80) -> 0 | U4: =SUM(R4:T4) -> 0 | V4: =SUM(V21,V38,V55,V80,B98,C98,I98,J98) -> 2060104 | W4: =SUM(W21,W38,W55,W80,D98,K98) -> 0 | X4: =SUM(X21,X38,X55,X80,E98,L98) -> 6000 | Y4: =SUM(V4:X4) -> 2066104
A5: 2024-09-22 | B5: 1445127 | C5: 0 | D5: 6000 | E5: 1451127 | F5: =SUM(F22,F39,F56,F81) -> 40 | G5: =SUM(G22,G39,G56,G81) -> 0 | H5: =SUM(H22,H39,H56,H81) -> 0 | I5: 40 | J5: =SUM(J22,J39,J56,J81) -> 5000 | K5: =SUM(K22,K39,K56,K81) -> 0 | L5: =SUM(L22,L39,L56,L81) -> 0 | M5: 5000 | N5: =SUM(N22,N39,N56,N81) -> 3000 | O5: =SUM(O22,O41,O56,O81) -> 0 | P5: =SUM(P22,P39,P56,P81) -> 0 | Q5: 3000 | R5: =SUM(R22,R39,R56,R81) -> 0 | S5: =SUM(S22,S39,S56,S81) -> 0 | T5: =SUM(T22,T39,T56,T81) -> 0 | U5: =SUM(R5:T5) -> 0 | V5: =SUM(V22,V39,V56,V81,B99,C99,I99,J99) -> 1437087 | W5: =SUM(W22,W39,W56,W81,D99,K99) -> 0 | X5: =SUM(X22,X39,X56,X81,E99,L99) -> 6000 | Y5: 1443087
A6: 2024-10-22 | B6: 1341115 | C6: 25 | D6: 0 | E6: 1341140 | F6: =SUM(F23,F40,F57,F82) -> 0 | G6: =SUM(G23,G40,G57,G82) -> 0 | H6: =SUM(H23,H40,H57,H82) -> 0 | I6: 0 | J6: =SUM(J23,J40,J57,J82) -> 20000 | K6: =SUM(K23,K40,K57,K82) -> 0 | L6: =SUM(L23,L40,L57,L82) -> 0 | M6: 20000 | N6: =SUM(N23,N40,N57,N82) -> 6000 | O6: =SUM(O23,O42,O57,O82) -> 25 | P6: =SUM(P23,P40,P57,P82) -> 0 | Q6: 6025 | R6: =SUM(R23,R40,R57,R82) -> 0 | S6: =SUM(S23,S40,S57,S82) -> 0 | T6: =SUM(T23,T40,T57,T82) -> 0 | U6: 0 | V6: =SUM(V23,V40,V57,V82,B100,C100,I100,J100) -> 1315115 | W6: 0 | X6: =SUM(X23,X40,X57,X82,E100,L100) -> 0 | Y6: 1315115
A7: 2024-11-22 | B7: 1370525 | C7: 25 | D7: 0 | E7: 1370550 | F7: =SUM(F24,F41,F58,F83) -> 0 | G7: =SUM(G24,G41,G58,G83) -> 0 | H7: =SUM(H24,H41,H58,H83) -> 0 | I7: 0 | J7: =SUM(J24,J41,J58,J82) -> 10000 | K7: =SUM(K24,K41,K58,K83) -> 0 | L7: =SUM(L24,L41,L58,L83) -> 0 | M7: 10000 | N7: =SUM(N24,N41,N58,N83) -> 6000 | O7: =SUM(O24,O43,O58,O83) -> 25 | P7: =SUM(P24,P41,P58,P83) -> 0 | Q7: 6025 | R7: =SUM(R24,R41,R58,R83) -> 10000 | S7: =SUM(S24,S41,S58,S83) -> 0 | T7: =SUM(T24,T41,T58,T83) -> 0 | U7: 10000 | V7: =SUM(V24,V41,V58,V83,B101,C101,I101,J101) -> 1344525 | W7: 0 | X7: =SUM(X24,X41,X58,X83,E101,L101) -> 0 | Y7: 1344525
A8: 2024-12-22 | B8: 1662771 | C8: 0 | D8: 0 | E8: 1662771 | F8: =SUM(F25,F42,F59,F84) -> 0 | G8: =SUM(G25,G42,G59,G84) -> 0 | H8: =SUM(H25,H42,H59,H84) -> 0 | I8: 0 | J8: =SUM(J25,J42,J59,J84) -> 12500 | K8: =SUM(K25,K42,K59,K84) -> 0 | L8: =SUM(L25,L42,L59,L84) -> 0 | M8: 12500 | N8: =SUM(N25,N42,N59,N84) -> 9000 | O8: =SUM(O25,O44,O59,O84) -> 0 | P8: =SUM(P25,P42,P59,P84) -> 0 | Q8: 9000 | R8: =SUM(R25,R42,R59,R84) -> 10000 | S8: =SUM(S25,S42,S59,S84) -> 0 | T8: =SUM(T25,T42,T59,T84) -> 0 | U8: 10000 | V8: =SUM(V25,V42,V59,V84,B102,C102,I102,J102) -> 1631271 | W8: 0 | X8: =SUM(X25,X42,X59,X84,E102,L102) -> 0 | Y8: 1631271
A9: 2025-01-22 | B9: 1662611 | C9: =SUM(G9,K9,O9,S9,W9) -> 0 | D9: 0 | E9: 1662611 | F9: =SUM(F26,F43,F60,F85) -> 0 | G9: =SUM(G26,G43,G60,G85) -> 0 | H9: =SUM(H26,H43,H60,H85) -> 0 | I9: 0 | J9: =SUM(J26,J43,J60,J85) -> 12500 | K9: =SUM(K26,K43,K60,K85) -> 0 | L9: =SUM(L26,L43,L60,L85) -> 0 | M9: 12500 | N9: =SUM(N26,N43,N60,N85) -> 8200 | O9: =SUM(O26,O45,O60,O85) -> 0 | P9: =SUM(P26,P43,P60,P85) -> 0 | Q9: 8200 | R9: =SUM(R26,R43,R60,R85) -> 10000 | S9: =SUM(S26,S43,S60,S85) -> 0 | T9: =SUM(T26,T43,T60,T85) -> 0 | U9: 10000 | V9: =SUM(V26,V43,V60,V85,B102,C102,I102,J102) -> 1631911 | W9: 0 | X9: =SUM(X26,X43,X60,X85,E102,L102) -> 0 | Y9: 1631911
A10: 2025-02-22 | B10: 1853872 | C10: 0 | D10: 17489 | E10: 1871361 | F10: =SUM(F27,F44,F61,F86) -> 0 | G10: =SUM(G27,G44,G61,G86) -> 0 | H10: =SUM(H27,H44,H61,H86) -> 0 | I10: 0 | J10: =SUM(J27,J44,J61,J86) -> 9500 | K10: =SUM(K27,K44,K61,K86) -> 0 | L10: =SUM(L27,L44,L61,L86) -> 3000 | M10: 12500 | N10: =SUM(N27,N44,N61,N86) -> 7000 | O10: =SUM(O27,O46,O61,O86) -> 0 | P10: =SUM(P27,P44,P61,P86) -> 0 | Q10: 7000 | R10: =SUM(R27,R44,R61,R86) -> 8174 | S10: =SUM(S27,S44,S61,S86) -> 0 | T10: =SUM(T27,T44,T61,T86) -> 0 | U10: 8174 | V10: =SUM(V27,V44,V61,V86,B103,C103,I103,J103) -> 1829198 | W10: 0 | X10: =SUM(X27,X44,X61,X86,E103,L103) -> 14489 | Y10: 1843687
A11: 2025-03-22 | B11: 1503891 | C11: 0 | D11: =SUM(H11,L11,P11,T11,X11) -> 0 | E11: 1503891 | F11: =SUM(F28,F45,F62,F87) -> 0 | G11: =SUM(G28,G45,G62,G87) -> 0 | H11: =SUM(H28,H45,H62,H87) -> 0 | I11: 0 | J11: =SUM(J28,J45,J62,J86) -> 12500 | K11: =SUM(K28,K45,K62,K87) -> 0 | L11: =SUM(L28,L45,L62,L87) -> 0 | M11: 12500 | N11: =SUM(N28,N45,N62,N87) -> 3000 | O11: =SUM(O28,O47,O62,O87) -> 0 | P11: =SUM(P28,P45,P62,P87) -> 0 | Q11: 3000 | R11: =SUM(R28,R45,R62,R87) -> 17874 | S11: =SUM(S28,S45,S62,S87) -> 0 | T11: =SUM(T28,T45,T62,T87) -> 0 | U11: 17874 | V11: =SUM(V28,V45,V62,V87,B105,C105,I105,J105) -> 1470517 | W11: 0 | X11: =SUM(X28,X45,X62,X87,E105,L105) -> 0 | Y11: 1470517
A12: 2025-04-22 | B12: =SUM(F12,J12,N12,R12,V12) -> 1402106 | C12: 0 | D12: =SUM(H12,L12,P12,T12,X12) -> 10900 | E12: =SUM(B12:D12) -> 1413006 | F12: =SUM(F29,F46,F63,F88) -> 0 | G12: =SUM(G29,G46,G63,G88) -> 0 | H12: =SUM(H29,H46,H63,H88) -> 0 | I12: =SUM(F12:H12) -> 0 | J12: =SUM(J29,J46,J63,J87) -> 45000 | K12: =SUM(K29,K46,K63,K88) -> 0 | L12: =SUM(L29,L46,L63,L88) -> 0 | M12: =SUM(J12:L12) -> 45000 | N12: =SUM(N29,N46,N63,N88) -> 4000 | O12: =SUM(O29,O49,O63,O88) -> 0 | P12: =SUM(P29,P46,P63,P88) -> 0 | Q12: =SUM(N12:P12) -> 4000 | R12: =SUM(R29,R46,R63,R88) -> 20500 | S12: =SUM(S29,S46,S63,S88) -> 0 | T12: =SUM(T1,T46,T63,T88) -> 0 | U12: 20500 | V12: =SUM(V29,V46,V63,V88,B106,C106,I106,J106) -> 1332606 | W12: 0 | X12: =SUM(X29,X46,X63,X88,E106,L106) -> 10900 | Y12: =SUM(V12:X12) -> 1343506
A13: 2025-05-22 | B13: =SUM(F13,J13,N13,R13,V13) -> 1382606 | C13: 0 | D13: 10900 | E13: 1393506 | F13: =SUM(F30,F47,F64,F89) -> 0 | G13: =SUM(G30,G47,G64,G89) -> 0 | H13: =SUM(H30,H47,H64,H89) -> 0 | I13: 0 | J13: =SUM(J29,J46,J63,J87) -> 45000 | K13: =SUM(K30,K47,K64,K89) -> 0 | L13: =SUM(L30,L47,L64,L89) -> 0 | M13: 45000 | N13: =SUM(N30,N47,N64,N89) -> 3000 | O13: =SUM(O30,O51,O64,O89) -> 0 | P13: =SUM(P30,P47,P64,P89) -> 0 | Q13: 3000 | R13: =SUM(R30,R47,R64,R89) -> 2000 | S13: =SUM(S30,S47,S64,S89) -> 0 | T13: =SUM(T2,T47,T64,T89) -> 0 | U13: 2000 | V13: =SUM(V29,V46,V63,V88,B106,C106,I106,J106) -> 1332606 | W13: 0 | X13: =SUM(X29,X46,X63,X88,E106,L106) -> 10900 | Y13: 1343506
A14: 2025-06-22 | B14: =SUM(F14,J14,N14,R14,V14) -> 3265730 | C14: =SUM(G14,K14,O14,S14,W14) -> 0 | D14: =SUM(H14,L14,P14,T14,X14) -> 0 | E14: 3265730 | F14: =SUM(F30,F47,F64,F89) -> 0 | G14: =SUM(G30,G47,G64,G89) -> 0 | H14: =SUM(H30,H47,H64,H89) -> 0 | I14: 0 | J14: =SUM(J30,J47,J64,J89) -> 12500 | K14: =SUM(K30,K47,K64,K89) -> 0 | L14: =SUM(L30,L47,L64,L89) -> 0 | M14: 12500 | N14: =SUM(N30,N47,N64,N89) -> 3000 | O14: =SUM(O30,O51,O64,O89) -> 0 | P14: =SUM(P30,P47,P64,P89) -> 0 | Q14: 3000 | R14: =SUM(R30,R47,R64,R89) -> 2000 | S14: =SUM(S30,S47,S64,S89) -> 0 | T14: =SUM(T2,T47,T64,T89) -> 0 | U14: 2000 | V14: =SUM(V30,V47,V64,V89,B107,C107,I107,J107) -> 3248230 | W14: 0 | X14: =SUM(X30,X47,X64,X89,E107,L107) -> 0 | Y14: 3248230
A15: 2025-07-22 | B15: =SUM(F15,J15,N15,R15,V15) -> 5501141 | C15: 0 | D15: =SUM(H15,L15,P15,T15,X15) -> 61390 | E15: =SUM(B15:D15) -> 5562531 | F15: =SUM(F32,F49,F66,F91) -> 0 | G15: =SUM(G32,G49,G66,G91) -> 0 | H15: =SUM(H32,H49,H66,H91) -> 0 | I15: =SUM(F15:H15) -> 0 | J15: =SUM(J32,J49,J66,J91) -> 7500 | K15: =SUM(K32,K49,K66,K91) -> 0 | L15: =SUM(L32,L49,L66,L91) -> 0 | M15: =SUM(J15:L15) -> 7500 | N15: =SUM(N32,N49,N66,N91) -> 23000 | O15: =SUM(O32,O52,O66,O91) -> 0 | P15: =SUM(P32,P49,P66,P91) -> 0 | Q15: =SUM(N15:P15) -> 23000 | R15: =SUM(R32,R49,R66,R91) -> 0 | S15: =SUM(S32,S49,S66,S91) -> 0 | T15: =SUM(T3,T49,T66,T91) -> 0 | U15: 0 | V15: =SUM(V32,V49,V66,V91,B109,C109,I109,J109) -> 5470641 | W15: 0 | X15: =SUM(X32,X49,X66,X91,E109,L109) -> 61390 | Y15: =SUM(V15:X15) -> 5532031
A16: 2025-08-22 | B16: =SUM(F16,J16,N16,R16,V16) -> 3292501 | C16: =SUM(G16,K16,O16,S16,W16) -> 0 | D16: =SUM(H16,L16,P16,T16,X16) -> 300 | E16: =SUM(B16:D16) -> 3292801 | F16: =SUM(F33,F50,F67,F92) -> 0 | G16: =SUM(G33,G50,G67,G92) -> 0 | H16: =SUM(H33,H50,H67,H92) -> 0 | I16: =SUM(F16:H16) -> 0 | J16: =SUM(J33,J50,J67,J92) -> 12500 | K16: =SUM(K33,K50,K67,K92) -> 0 | L16: =SUM(L33,L50,L67,L92) -> 0 | M16: =SUM(J16:L16) -> 12500 | N16: =SUM(N33,N50,N67,N92) -> 0 | O16: =SUM(O33,O53,O67,O92) -> 0 | P16: =SUM(P33,P50,P67,P92) -> 0 | Q16: =SUM(N16:P16) -> 0 | R16: =SUM(R33,R50,R67,R92) -> 4000 | S16: =SUM(S33,S50,S67,S92) -> 0 | T16: =SUM(T4,T50,T67,T92) -> 300 | U16: 4300 | V16: =SUM(V33,V50,V67,V92,B110,C110,I110,J110) -> 3276001 | W16: 0 | X16: =SUM(X33,X50,X67,X92,E110,L110) -> 0 | Y16: =SUM(V16:X16) -> 3276001
A18: FT-D2 to FT-D2 Transfer Summary
A19: Total | F19: NW Alberta and NE BC | J19: NE Alberta | N19: Edmonton and Area | R19: SW Alberta | V19: SE Alberta
A20: Month | B20: Approved | C20: Denied | D20: Cancelled | E20: Total | F20: Approved | G20: Denied | H20: Cancelled | I20: Total | J20: Approved | K20: Denied | L20: Cancelled | M20: Total | N20: Approved | O20: Denied | P20: Cancelled | Q20: Total | R20: Approved | S20: Denied | T20: Cancelled | U20: Total | V20: Approved | W20: Denied | X20: Cancelled | Y20: Total
A21: 2024-08-22 | B21: =SUM(F21,J21,N21,R21,V21) -> 44300 | C21: =SUM(G21,K21,O21,S21,W21) -> 0 | D21: =SUM(H21,L21,P21,T21,X21) -> 0 | E21: =SUM(B21:D21) -> 44300 | F21: 0 | G21: 0 | H21: 0 | I21: =SUM(F21:H21) -> 0 | J21: 12500 | K21: 0 | L21: 0 | M21: =SUM(J21:L21) -> 12500 | N21: 4000 | O21: 0 | P21: 0 | Q21: =SUM(N21:P21) -> 4000 | R21: 0 | S21: 0 | T21: 0 | U21: =SUM(R21:T21) -> 0 | V21: 27800 | W21: 0 | X21: 0 | Y21: =SUM(V21:X21) -> 27800
A22: 2024-09-22 | B22: 29780 | C22: 0 | D22: 0 | E22: 29780 | F22: 40 | G22: 0 | H22: 0 | I22: 40 | J22: 5000 | K22: 0 | L22: 0 | M22: 5000 | N22: 3000 | O22: 0 | P22: 0 | Q22: 3000 | R22: 0 | S22: 0 | T22: 0 | U22: 0 | V22: 21740 | W22: 0 | X22: 0 | Y22: 21740
A23: 2024-10-22 | B23: 59740 | C23: 25 | D23: 0 | E23: 59765 | F23: 0 | G23: 0 | H23: 0 | I23: 0 | J23: 20000 | K23: 0 | L23: 0 | M23: 20000 | N23: 6000 | O23: 25 | P23: 0 | Q23: 6025 | R23: 0 | S23: 0 | T23: 0 | U23: 0 | V23: 33740 | W23: 0 | X23: 0 | Y23: 33740
A24: 2024-11-22 | B24: 44150 | C24: 25 | D24: 0 | E24: 44175 | F24: 0 | G24: 0 | H24: 0 | I24: 0 | J24: 10000 | K24: 0 | L24: 0 | M24: 10000 | N24: 6000 | O24: 25 | P24: 0 | Q24: 6025 | R24: 0 | S24: 0 | T24: 0 | U24: 0 | V24: 28150 | W24: 0 | X24: 0 | Y24: 28150
A25: 2024-12-22 | B25: 47100 | C25: 0 | D25: 0 | E25: 47100 | F25: 0 | G25: 0 | H25: 0 | I25: 0 | J25: 12500 | K25: 0 | L25: 0 | M25: 12500 | N25: 9000 | O25: 0 | P25: 0 | Q25: 9000 | R25: 0 | S25: 0 | T25: 0 | U25: 0 | V25: 25600 | W25: 0 | X25: 0 | Y25: 25600
A26: 2025-01-22 | B26: 46740 | C26: 0 | D26: 0 | E26: 46740 | F26: 0 | G26: 0 | H26: 0 | I26: 0 | J26: 12500 | K26: 0 | L26: 0 | M26: 12500 | N26: 8000 | O26: 0 | P26: 0 | Q26: 8000 | R26: 0 | S26: 0 | T26: 0 | U26: 0 | V26: 26240 | W26: 0 | X26: 0 | Y26: 26240
A27: 2025-02-22 | B27: 38074 | C27: 0 | D27: 3000 | E27: 41074 | F27: 0 | G27: 0 | H27: 0 | I27: 0 | J27: 9500 | K27: 0 | L27: 3000 | M27: 12500 | N27: 7000 | O27: 0 | P27: 0 | Q27: 7000 | R27: 2774 | S27: 0 | T27: 0 | U27: 2774 | V27: 18800 | W27: 0 | X27: 0 | Y27: 18800
A28: 2025-03-22 | B28: 39740 | C28: 0 | D28: 0 | E28: 39740 | F28: 0 | G28: 0 | H28: 0 | I28: 0 | J28: 12500 | K28: 0 | L28: 0 | M28: 12500 | N28: 3000 | O28: 0 | P28: 0 | Q28: 3000 | R28: 0 | S28: 0 | T28: 0 | U28: 0 | V28: 24240 | W28: 0 | X28: 0 | Y28: 24240
A29: 2025-04-22 | B29: =SUM(F29,J29,N29,R29,V29) -> 54450 | C29: =SUM(G29,K29,O29,S29,W29) -> 0 | D29: =SUM(H29,L29,P29,T29,X29) -> 10900 | E29: =SUM(B29:D29) -> 65350 | F29: 0 | G29: 0 | H29: 0 | I29: =SUM(F29:H29) -> 0 | J29: 45000 | K29: 0 | L29: 0 | M29: =SUM(J29:L29) -> 45000 | N29: 4000 | O29: 0 | P29: 0 | Q29: =SUM(N29:P29) -> 4000 | R29: 0 | S29: 0 | T29: 0 | U29: =SUM(R29:T29) -> 0 | V29: 5450 | W29: 0 | X29: 10900 | Y29: =SUM(V29:X29) -> 16350
A30: 2025-05-22 | B30: 51550 | C30: 0 | D30: 0 | E30: 51550 | F30: 0 | G30: 0 | H30: 0 | I30: 0 | J30: 12500 | K30: 0 | L30: 0 | M30: 12500 | N30: 3000 | O30: 0 | P30: 0 | Q30: 3000 | R30: 2000 | S30: 0 | T30: 0 | U30: 2000 | V30: 34050 | W30: 0 | X30: 0 | Y30: 34050
A31: 2025-06-22 | B31: 276550 | C31: 0 | D31: 47200 | E31: 323750 | F31: 0 | G31: 0 | H31: 0 | I31: 0 | J31: 24000 | K31: 0 | L31: 30000 | M31: 54000 | N31: 196200 | O31: 0 | P31: 17200 | Q31: 213400 | R31: 0 | S31: 0 | T31: 0 | U31: 0 | V31: 56350 | W31: 0 | X31: 0 | Y31: 56350
A32: 2025-07-22 | B32: =SUM(F32,J32,N32,R32,V32) -> 73100 | C32: =SUM(G32,K32,O32,S32,W32) -> 0 | D32: =SUM(H32,L32,P32,T32,X32) -> 0 | E32: =SUM(B32:D32) -> 73100 | F32: 0 | G32: 0 | H32: 0 | I32: =SUM(F32:H32) -> 0 | J32: 7500 | K32: 0 | L32: 0 | M32: =SUM(J32:L32) -> 7500 | N32: 23000 | O32: 0 | P32: 0 | Q32: =SUM(N32:P32) -> 23000 | R32: 0 | S32: 0 | T32: 0 | U32: =SUM(R32:T32) -> 0 | V32: 42600 | W32: 0 | X32: 0 | Y32: =SUM(V32:X32) -> 42600
A33: 2025-08-22 | B33: =SUM(F33,J33,N33,R33,V33) -> 31200 | C33: =SUM(G33,K33,O33,S33,W33) -> 0 | D33: =SUM(H33,L33,P33,T33,X33) -> 0 | E33: =SUM(B33:D33) -> 31200 | F33: 0 | G33: 0 | H33: 0 | I33: =SUM(F33:H33) -> 0 | J33: 12500 | K33: 0 | L33: 0 | M33: =SUM(J33:L33) -> 12500 | N33: 0 | O33: 0 | P33: 0 | Q33: =SUM(N33:P33) -> 0 | R33: 0 | S33: 0 | T33: 0 | U33: =SUM(R33:T33) -> 0 | V33: 18700 | W33: 0 | X33: 0 | Y33: =SUM(V33:X33) -> 18700
A35: FT-D3 to FT-D3 Transfer Summary
A36: Total | F36: NW Alberta and NE BC | J36: NE Alberta | N36: Edmonton and Area | R36: SW Alberta | V36: SE Alberta
A37: Month | B37: Approved | C37: Denied | D37: Cancelled | E37: Total | F37: Approved | G37: Denied | H37: Cancelled | I37: Total | J37: Approved | K37: Denied | L37: Cancelled | M37: Total | N37: Approved | O37: Denied | P37: Cancelled | Q37: Total | R37: Approved | S37: Denied | T37: Cancelled | U37: Total | V37: Approved | W37: Denied | X37: Cancelled | Y37: Total
A38: 2024-08-22 | B38: =SUM(F38,J38,N38,R38,V38) -> 130 | C38: =SUM(G38,K38,O38,S38,W38) -> 0 | D38: =SUM(H38,L38,P38,T38,X38) -> 0 | E38: =SUM(B38:D38) -> 130 | F38: 0 | G38: 0 | H38: 0 | I38: =SUM(F38:H38) -> 0 | J38: 0 | K38: 0 | L38: 0 | M38: =SUM(J38:L38) -> 0 | N38: 130 | O38: 0 | P38: 0 | Q38: =SUM(N38:P38) -> 130 | R38: 0 | S38: 0 | T38: 0 | U38: =SUM(R38:T38) -> 0 | V38: 0 | W38: 0 | X38: 0 | Y38: 0
A39: 2024-09-22 | B39: 0 | C39: 0 | D39: 0 | E39: 0 | F39: 0 | G39: 0 | H39: 0 | I39: 0 | J39: 0 | K39: 0 | L39: 0 | M39: 0 | N39: 0 | O39: 0 | P39: 0 | Q39: 0 | R39: 0 | S39: 0 | T39: 0 | U39: 0 | V39: 0 | W39: 0 | X39: 0 | Y39: 0
A40: 2024-10-22 | B40: 0 | C40: 0 | D40: 0 | E40: 0 | F40: 0 | G40: 0 | H40: 0 | I40: 0 | J40: 0 | K40: 0 | L40: 0 | M40: 0 | N40: 0 | O40: 0 | P40: 0 | Q40: 0 | R40: 0 | S40: 0 | T40: 0 | U40: 0 | V40: 0 | W40: 0 | X40: 0 | Y40: 0
A41: 2024-11-22 | B41: 0 | C41: 0 | D41: 0 | E41: 0 | F41: 0 | G41: 0 | H41: 0 | I41: 0 | J41: 0 | K41: 0 | L41: 0 | M41: 0 | N41: 0 | O41: 0 | P41: 0 | Q41: 0 | R41: 0 | S41: 0 | T41: 0 | U41: 0 | V41: 0 | W41: 0 | X41: 0 | Y41: 0
A42: 2024-12-22 | B42: 0 | C42: 0 | D42: 0 | E42: 0 | F42: 0 | G42: 0 | H42: 0 | I42: 0 | J42: 0 | K42: 0 | L42: 0 | M42: 0 | N42: 0 | O42: 0 | P42: 0 | Q42: 0 | R42: 0 | S42: 0 | T42: 0 | U42: 0 | V42: 0 | W42: 0 | X42: 0 | Y42: 0
A43: 2025-01-22 | B43: 200 | C43: 0 | D43: 0 | E43: 200 | F43: 0 | G43: 0 | H43: 0 | I43: 0 | J43: 0 | K43: 0 | L43: 0 | M43: 0 | N43: 200 | O43: 0 | P43: 0 | Q43: 200 | R43: 0 | S43: 0 | T43: 0 | U43: 0 | V43: 0 | W43: 0 | X43: 0 | Y43: 0
A44: 2025-02-22 | B44: 0 | C44: 0 | D44: 0 | E44: 0 | F44: 0 | G44: 0 | H44: 0 | I44: 0 | J44: 0 | K44: 0 | L44: 0 | M44: 0 | N44: 0 | O44: 0 | P44: 0 | Q44: 0 | R44: 0 | S44: 0 | T44: 0 | U44: 0 | V44: 0 | W44: 0 | X44: 0 | Y44: 0
A45: 2025-03-22 | B45: 0 | C45: 0 | D45: 0 | E45: 0 | F45: 0 | G45: 0 | H45: 0 | I45: 0 | J45: 0 | K45: 0 | L45: 0 | M45: 0 | N45: 0 | O45: 0 | P45: 0 | Q45: 0 | R45: 0 | S45: 0 | T45: 0 | U45: 0 | V45: 0 | W45: 0 | X45: 0 | Y45: 0
A46: 2025-04-22 | B46: =SUM(F46,J46,N46,R46,V46) -> 0 | C46: =SUM(G46,K46,O46,S46,W46) -> 0 | D46: =SUM(H46,L46,P46,T46,X46) -> 0 | E46: =SUM(B46:D46) -> 0 | F46: 0 | G46: 0 | H46: 0 | I46: =SUM(F46:H46) -> 0 | J46: 0 | K46: 0 | L46: 0 | M46: =SUM(J46:L46) -> 0 | N46: 0 | O46: 0 | P46: 0 | Q46: =SUM(N46:P46) -> 0 | R46: 0 | S46: 0 | T46: 0 | U46: =SUM(R46:T46) -> 0 | V46: 0 | W46: 0 | X46: 0 | Y46: 0
A47: 2025-05-22 | B47: 0 | C47: 0 | D47: 0 | E47: 0 | F47: 0 | G47: 0 | H47: 0 | I47: 0 | J47: 0 | K47: 0 | L47: 0 | M47: 0 | N47: 0 | O47: 0 | P47: 0 | Q47: 0 | R47: 0 | S47: 0 | T47: 0 | U47: 0 | V47: 0 | W47: 0 | X47: 0 | Y47: 0
A48: 2025-06-22 | B48: 0 | C48: 0 | D48: 0 | E48: 0 | F48: 0 | G48: 0 | H48: 0 | I48: 0 | J48: 0 | K48: 0 | L48: 0 | M48: 0 | N48: 0 | O48: 0 | P48: 0 | Q48: 0 | R48: 0 | S48: 0 | T48: 0 | U48: 0 | V48: 0 | W48: 0 | X48: 0 | Y48: 0
A49: 2025-07-22 | B49: =SUM(F49,J49,N49,R49,V49) -> 0 | C49: =SUM(G49,K49,O49,S49,W49) -> 0 | D49: =SUM(H49,L49,P49,T49,X49) -> 0 | E49: =SUM(B49:D49) -> 0 | F49: 0 | G49: 0 | H49: 0 | I49: =SUM(F49:H49) -> 0 | J49: 0 | K49: 0 | L49: 0 | M49: =SUM(J49:L49) -> 0 | N49: 0 | O49: 0 | P49: 0 | Q49: =SUM(N49:P49) -> 0 | R49: 0 | S49: 0 | T49: 0 | U49: =SUM(R49:T49) -> 0 | V49: 0 | W49: 0 | X49: 0 | Y49: 0
A50: 2025-08-22 | B50: =SUM(F50,J50,N50,R50,V50) -> 0 | C50: =SUM(G50,K50,O50,S50,W50) -> 0 | D50: =SUM(H50,L50,P50,T50,X50) -> 0 | E50: =SUM(B50:D50) -> 0 | F50: 0 | G50: 0 | H50: 0 | I50: =SUM(F50:H50) -> 0 | J50: 0 | K50: 0 | L50: 0 | M50: =SUM(J50:L50) -> 0 | N50: 0 | O50: 0 | P50: 0 | Q50: =SUM(N50:P50) -> 0 | R50: 0 | S50: 0 | T50: 0 | U50: =SUM(R50:T50) -> 0 | V50: 0 | W50: 0 | X50: 0 | Y50: 0
A52: FT-D1 to FT-D2 Transfer Summary
A53: Total | F53: NW Alberta and NE BC | J53: NE Alberta | N53: Edmonton and Area | R53: SW Alberta | V53: SE Alberta
A54: Month | B54: Approved | C54: Denied | D54: Cancelled | E54: Total | F54: Approved | G54: Denied | H54: Cancelled | I54: Total | J54: Approved | K54: Denied | L54: Cancelled | M54: Total | N54: Approved | O54: Denied | P54: Cancelled | Q54: Total | R54: Approved | S54: Denied | T54: Cancelled | U54: Total | V54: Approved | W54: Denied | X54: Cancelled | Y54: Total
A55: 2024-08-22 | B55: =SUM(F55,J55,N55,R55,V55) -> 0 | C55: =SUM(G55,K55,O55,S55,W55) -> 0 | D55: =SUM(H55,L55,P55,T55,X55) -> 0 | E55: =SUM(I55,M55,Q55,U55,Y55) -> 0 | F55: 0 | G55: 0 | H55: 0 | I55: =SUM(F55:H55) -> 0 | J55: 0 | K55: 0 | L55: 0 | M55: =SUM(J55:L55) -> 0 | N55: 0 | O55: 0 | P55: 0 | Q55: =SUM(N55:P55) -> 0 | R55: 0 | S55: 0 | T55: 0 | U55: =SUM(R55:T55) -> 0 | V55: 0 | W55: 0 | X55: 0 | Y55: =SUM(V55:X55) -> 0
A56: 2024-09-22 | B56: 0 | C56: 0 | D56: 0 | E56: 0 | F56: 0 | G56: 0 | H56: 0 | I56: 0 | J56: 0 | K56: 0 | L56: 0 | M56: 0 | N56: 0 | O56: 0 | P56: 0 | Q56: 0 | R56: 0 | S56: 0 | T56: 0 | U56: 0 | V56: 0 | W56: 0 | X56: 0 | Y56: 0
A57: 2024-10-22 | B57: 0 | C57: 0 | D57: 0 | E57: 0 | F57: 0 | G57: 0 | H57: 0 | I57: 0 | J57: 0 | K57: 0 | L57: 0 | M57: 0 | N57: 0 | O57: 0 | P57: 0 | Q57: 0 | R57: 0 | S57: 0 | T57: 0 | U57: 0 | V57: 0 | W57: 0 | X57: 0 | Y57: 0
A58: 2024-11-22 | B58: 0 | C58: 0 | D58: 0 | E58: 0 | F58: 0 | G58: 0 | H58: 0 | I58: 0 | J58: 0 | K58: 0 | L58: 0 | M58: 0 | N58: 0 | O58: 0 | P58: 0 | Q58: 0 | R58: 0 | S58: 0 | T58: 0 | U58: 0 | V58: 0 | W58: 0 | X58: 0 | Y58: 0
A59: 2024-12-22 | B59: 0 | C59: 0 | D59: 0 | E59: 0 | F59: 0 | G59: 0 | H59: 0 | I59: 0 | J59: 0 | K59: 0 | L59: 0 | M59: 0 | N59: 0 | O59: 0 | P59: 0 | Q59: 0 | R59: 0 | S59: 0 | T59: 0 | U59: 0 | V59: 0 | W59: 0 | X59: 0 | Y59: 0
A60: 2025-01-22 | B60: 0 | C60: 0 | D60: 0 | E60: 0 | F60: 0 | G60: 0 | H60: 0 | I60: 0 | J60: 0 | K60: 0 | L60: 0 | M60: 0 | N60: 0 | O60: 0 | P60: 0 | Q60: 0 | R60: 0 | S60: 0 | T60: 0 | U60: 0 | V60: 0 | W60: 0 | X60: 0 | Y60: 0
A61: 2025-02-22 | B61: 0 | C61: 0 | D61: 0 | E61: 0 | F61: 0 | G61: 0 | H61: 0 | I61: 0 | J61: 0 | K61: 0 | L61: 0 | M61: 0 | N61: 0 | O61: 0 | P61: 0 | Q61: 0 | R61: 0 | S61: 0 | T61: 0 | U61: 0 | V61: 0 | W61: 0 | X61: 0 | Y61: 0
A62: 2025-03-22 | B62: 0 | C62: 0 | D62: 0 | E62: 0 | F62: 0 | G62: 0 | H62: 0 | I62: 0 | J62: 0 | K62: 0 | L62: 0 | M62: 0 | N62: 0 | O62: 0 | P62: 0 | Q62: 0 | R62: 0 | S62: 0 | T62: 0 | U62: 0 | V62: 0 | W62: 0 | X62: 0 | Y62: 0
A63: 2025-04-22 | B63: =SUM(F63,J63,N63,R63,V63) -> 0 | C63: =SUM(G63,K63,O63,S63,W63) -> 0 | D63: =SUM(H63,L63,P63,T63,X63) -> 0 | E63: =SUM(I63,M63,Q63,U63,Y63) -> 0 | F63: 0 | G63: 0 | H63: 0 | I63: =SUM(F63:H63) -> 0 | J63: 0 | K63: 0 | L63: 0 | M63: =SUM(J63:L63) -> 0 | N63: 0 | O63: 0 | P63: 0 | Q63: =SUM(N63:P63) -> 0 | R63: 0 | S63: 0 | T63: 0 | U63: =SUM(R63:T63) -> 0 | V63: 0 | W63: 0 | X63: 0 | Y63: =SUM(V63:X63) -> 0
A64: 2025-05-22 | B64: 0 | C64: 0 | D64: 0 | E64: 0 | F64: 0 | G64: 0 | H64: 0 | I64: 0 | J64: 0 | K64: 0 | L64: 0 | M64: 0 | N64: 0 | O64: 0 | P64: 0 | Q64: 0 | R64: 0 | S64: 0 | T64: 0 | U64: 0 | V64: 0 | W64: 0 | X64: 0 | Y64: 0
A65: 2025-06-22 | B65: 241887 | C65: 0 | D65: 1086 | E65: 242973 | F65: 0 | G65: 0 | H65: 0 | I65: 0 | J65: 0 | K65: 0 | L65: 0 | M65: 0 | N65: 0 | O65: 0 | P65: 0 | Q65: 0 | R65: 0 | S65: 0 | T65: 0 | U65: 0 | V65: 241887 | W65: 0 | X65: 1086 | Y65: 242973
A66: 2025-07-22 | B66: =SUM(F66,J66,N66,R66,V66) -> 301663 | C66: =SUM(G66,K66,O66,S66,W66) -> 0 | D66: =SUM(H66,L66,P66,T66,X66) -> 0 | E66: =SUM(I66,M66,Q66,U66,Y66) -> 301663 | F66: 0 | G66: 0 | H66: 0 | I66: =SUM(F66:H66) -> 0 | J66: 0 | K66: 0 | L66: 0 | M66: =SUM(J66:L66) -> 0 | N66: 0 | O66: 0 | P66: 0 | Q66: =SUM(N66:P66) -> 0 | R66: 0 | S66: 0 | T66: 0 | U66: =SUM(R66:T66) -> 0 | V66: 301663 | W66: 0 | X66: 0 | Y66: =SUM(V66:X66) -> 301663
A67: 2025-08-22 | B67: =SUM(F67,J67,N67,R67,V67) -> 0 | C67: =SUM(G67,K67,O67,S67,W67) -> 0 | D67: =SUM(H67,L67,P67,T67,X67) -> 0 | E67: =SUM(I67,M67,Q67,U67,Y67) -> 0 | F67: 0 | G67: 0 | H67: 0 | I67: =SUM(F67:H67) -> 0 | J67: 0 | K67: 0 | L67: 0 | M67: =SUM(J67:L67) -> 0 | N67: 0 | O67: 0 | P67: 0 | Q67: =SUM(N67:P67) -> 0 | R67: 0 | S67: 0 | T67: 0 | U67: =SUM(R67:T67) -> 0 | V67: 0 | W67: 0 | X67: 0 | Y67: =SUM(V67:X67) -> 0
A77: FT-D2 to FT-D1 Transfer Summary
A78: Total | F78: NW Alberta and NE BC | J78: NE Alberta | N78: Edmonton and Area | R78: SW Alberta | V78: SE Alberta
A79: Month | B79: Approved | C79: Denied | D79: Cancelled | E79: Total | F79: Approved | G79: Denied | H79: Cancelled | I79: Total | J79: Approved | K79: Denied | L79: Cancelled | M79: Total | N79: Approved | O79: Denied | P79: Cancelled | Q79: Total | R79: Approved | S79: Denied | T79: Cancelled | U79: Total | V79: Approved | W79: Denied | X79: Cancelled | Y79: Total
A80: 2024-08-22 | B80: =SUM(F80,J80,N80,R80,V80) -> 0 | C80: =SUM(G80,K80,O80,S80,W80) -> 0 | D80: =SUM(H80,L80,P80,T80,X80) -> 0 | E80: =SUM(B80:D80) -> 0 | F80: 0 | G80: 0 | H80: 0 | I80: =SUM(F80:H80) -> 0 | J80: 0 | K80: 0 | L80: 0 | M80: =SUM(J80:L80) -> 0 | N80: 0 | O80: 0 | P80: 0 | Q80: =SUM(N80:P80) -> 0 | R80: 0 | S80: 0 | T80: 0 | U80: 0 | V80: 0 | W80: 0 | X80: 0 | Y80: 0
A81: 2024-09-22 | B81: 0 | C81: 0 | D81: 0 | E81: 0 | F81: 0 | G81: 0 | H81: 0 | I81: 0 | J81: 0 | K81: 0 | L81: 0 | M81: 0 | N81: 0 | O81: 0 | P81: 0 | Q81: 0 | R81: 0 | S81: 0 | T81: 0 | U81: 0 | V81: 0 | W81: 0 | X81: 0 | Y81: 0
A82: 2024-10-22 | B82: 0 | C82: 0 | D82: 0 | E82: 0 | F82: 0 | G82: 0 | H82: 0 | I82: 0 | J82: 0 | K82: 0 | L82: 0 | M82: 0 | N82: 0 | O82: 0 | P82: 0 | Q82: 0 | R82: 0 | S82: 0 | T82: 0 | U82: 0 | V82: 0 | W82: 0 | X82: 0 | Y82: 0
A83: 2024-11-22 | B83: 45000 | C83: 0 | D83: 0 | E83: 45000 | F83: 0 | G83: 0 | H83: 0 | I83: 0 | J83: 0 | K83: 0 | L83: 0 | M83: 0 | N83: 0 | O83: 0 | P83: 0 | Q83: 0 | R83: 10000 | S83: 0 | T83: 0 | U83: =SUM(R83,S83,T83) -> 10000 | V83: 35000 | W83: 0 | X83: 0 | Y83: =SUM(V83,W83,X83) -> 35000
A84: 2024-12-22 | B84: 45000 | C84: 0 | D84: 0 | E84: 45000 | F84: 0 | G84: 0 | H84: 0 | I84: 0 | J84: 0 | K84: 0 | L84: 0 | M84: 0 | N84: 0 | O84: 0 | P84: 0 | Q84: 0 | R84: 10000 | S84: 0 | T84: 0 | U84: =SUM(R84,S84,T84) -> 10000 | V84: 35000 | W84: 0 | X84: 0 | Y84: =SUM(V84,W84,X84) -> 35000
A85: 2025-01-22 | B85: 45000 | C85: 0 | D85: 0 | E85: 45000 | F85: 0 | G85: 0 | H85: 0 | I85: 0 | J85: 0 | K85: 0 | L85: 0 | M85: 0 | N85: 0 | O85: 0 | P85: 0 | Q85: 0 | R85: 10000 | S85: 0 | T85: 0 | U85: =SUM(R85,S85,T85) -> 10000 | V85: 35000 | W85: 0 | X85: 0 | Y85: =SUM(V85,W85,X85) -> 35000
A86: 2025-02-22 | B86: 5400 | C86: =SUM(G86,K86,O86,S86,W86) -> 0 | D86: 0 | E86: 5400 | F86: 0 | G86: 0 | H86: 0 | I86: 0 | J86: 0 | K86: 0 | L86: 0 | M86: 0 | N86: 0 | O86: 0 | P86: 0 | Q86: 0 | R86: 5400 | S86: 0 | T86: 0 | U86: =SUM(R86:T86) -> 5400 | V86: 0 | W86: 0 | X86: 0 | Y86: =SUM(V86:X86) -> 0
A87: 2025-03-25 | B87: =SUM(F87,J87,N87,R87,V87) -> 17874 | C87: =SUM(G87,K87,O87,S87,W87) -> 0 | D87: =SUM(H87,L87,P87,T87,X87) -> 0 | E87: =SUM(B87:D87) -> 17874 | F87: 0 | G87: 0 | H87: 0 | I87: =SUM(F87:H87) -> 0 | J87: 0 | K87: 0 | L87: 0 | M87: =SUM(J87:L87) -> 0 | N87: 0 | O87: 0 | P87: 0 | Q87: =SUM(N87:P87) -> 0 | R87: 17874 | S87: 0 | T87: 0 | U87: =SUM(R87:T87) -> 17874 | V87: 0 | W87: 0 | X87: 0 | Y87: =SUM(V87:X87) -> 0
A88: 2025-04-22 | B88: =SUM(F88,J88,N88,R88,V88) -> 20500 | C88: =SUM(G88,K88,O88,S88,W88) -> 0 | D88: =SUM(H88,L88,P88,T88,X88) -> 0 | E88: =SUM(B88:D88) -> 20500 | F88: 0 | G88: 0 | H88: 0 | I88: =SUM(F88:H88) -> 0 | J88: 0 | K88: 0 | L88: 0 | M88: =SUM(J88:L88) -> 0 | N88: 0 | O88: 0 | P88: 0 | Q88: =SUM(N88:P88) -> 0 | R88: 20500 | S88: 0 | T88: 0 | U88: 0 | V88: 0 | W88: 0 | X88: 0 | Y88: 0
A89: 2025-05-22 | B89: =SUM(F89,J89,N89,R89,V89) -> 0 | C89: 0 | D89: =SUM(H89,L89,P89,T89,X89) -> 0 | E89: =SUM(B89:D89) -> 0 | F89: 0 | G89: 0 | H89: 0 | I89: 0 | J89: 0 | K89: 0 | L89: 0 | M89: 0 | N89: 0 | O89: 0 | P89: 0 | Q89: 0 | R89: 0 | S89: 0 | T89: 0 | U89: 0 | V89: 0 | W89: 0 | X89: 0 | Y89: 0
A90: 2025-06-22 | B90: 0 | C90: 0 | D90: 0 | E90: =SUM(B90:D90) -> 0 | F90: 0 | G90: 0 | H90: 0 | I90: 0 | J90: 0 | K90: 0 | L90: 0 | M90: 0 | N90: 0 | O90: 0 | P90: 0 | Q90: 0 | R90: 0 | S90: 0 | T90: 0 | U90: 0 | V90: 0 | W90: 0 | X90: 0 | Y90: 0
A91: 2025-07-22 | B91: 0 | C91: 0 | D91: 0 | E91: =SUM(B91:D91) -> 0 | F91: 0 | G91: 0 | H91: 0 | I91: =SUM(F91:H91) -> 0 | J91: 0 | K91: 0 | L91: 0 | M91: =SUM(J91:L91) -> 0 | N91: 0 | O91: 0 | P91: 0 | Q91: =SUM(N91:P91) -> 0 | R91: 0 | S91: 0 | T91: 0 | U91: 0 | V91: 0 | W91: 0 | X91: 0 | Y91: 0
A92: 2025-08-22 | B92: =SUM(F92,J92,N92,R92,V92) -> 4000 | C92: =SUM(G92,K92,O92,S92,W92) -> 0 | D92: =SUM(H92,L92,P92,T92,X92) -> 300 | E92: =SUM(B92:D92) -> 4300 | F92: 0 | G92: 0 | H92: 0 | I92: =SUM(F92:H92) -> 0 | J92: 0 | K92: 0 | L92: 0 | M92: =SUM(J92:L92) -> 0 | N92: 0 | O92: 0 | P92: 0 | Q92: =SUM(N92:P92) -> 0 | R92: 4000 | S92: 0 | T92: 300 | U92: 0 | V92: 0 | W92: 0 | X92: 0 | Y92: 0
A95: FT-D1 to FT-D1 Transfer Summary
A96: Empress to McNeill FT-D1 | H96: McNeill to Empress FT-D1
A97: Month | B97: Approved (Manual) | C97: Approved (ATP) | D97: Denied | E97: Cancelled | F97: Total | H97: Month | I97: Approved (Manual) | J97: Approved (ATP) | K97: Denied | L97: Cancelled | M97: Total
A98: 2024-08-22 | B98: 76411 | C98: 271525 | D98: 0 | E98: 0 | F98: =SUM(B98:E98) -> 347936 | H98: 2024-08-22 | I98: 970668 | J98: 713700 | K98: 0 | L98: 6000 | M98: =SUM(I98:L98) -> 1690368
A99: 2024-09-22 | B99: 160811 | C99: 159061 | D99: 0 | E99: 0 | F99: 319872 | H99: 2024-09-22 | I99: 794345 | J99: 301130 | K99: 0 | L99: 6000 | M99: 1101475
A100: 2024-10-22 | B100: 95576 | C100: 469356 | D100: 0 | E100: 0 | F100: 564932 | H100: 2024-10-22 | I100: 167182 | J100: 549261 | K100: 0 | L100: 0 | M100: 716443
A101: 2024-11-22 | B101: 95576 | C101: 469356 | D101: 0 | E101: 0 | F101: 564932 | H101: 2024-11-22 | I101: 167182 | J101: 549261 | K101: 0 | L101: 0 | M101: 716443
A102: 2024-12-22 | B102: 143847 | C102: 17400 | D102: 0 | E102: 0 | F102: 161247 | H102: 2024-12-22 | I102: 549451 | J102: 859973 | K102: 0 | L102: 0 | M102: 1409424
A103: 2025-01-22 | B103: 62300 | C103: 562519 | D103: 0 | E103: 14489 | F103: 639308 | H103: 2025-01-22 | I103: 669188 | J103: 516391 | K103: 0 | L103: 0 | M103: 1185579
A104: 2025-02-22 | B104: 0 | C104: 1596721 | D104: 0 | E104: 14489 | F104: 1611210 | H104: 2025-02-22 | I104: 0 | J104: 274567 | K104: 0 | L104: 0 | M104: 274567
A105: 2025-03-22 | B105: 145000 | C105: 511894 | D105: 0 | E105: 0 | F105: =SUM(B105:E105) -> 656894 | H105: 2025-03-22 | I105: 169763 | J105: 619620 | K105: 0 | L105: 0 | M105: =SUM(I105:L105) -> 789383
A106: 2025-04-22 | B106: 0 | C106: 680248 | D106: 0 | E106: 0 | F106: 680248 | H106: 2025-04-22 | I106: 0 | J106: 646908 | K106: 0 | L106: 0 | M106: 646908
A107: 2025-05-22 | B107: 215856 | C107: 1961276 | D107: 0 | E107: 0 | F107: 2177132 | H107: 2025-05-22 | I107: 17378 | J107: 1019670 | K107: 0 | L107: 0 | M107: 1037048
A108: 2025-06-22 | B108: 574303 | C108: 3040706 | D108: 0 | E108: 93777 | F108: 3708786 | H108: 2025-06-22 | I108: 1446284 | J108: 1814581 | K108: 0 | L108: 0 | M108: 3260865
A109: 2025-07-22 | B109: 443085 | C109: 1913835 | D109: 0 | E109: 61390 | F109: =SUM(B109:E109) -> 2418310 | H109: 2025-07-22 | I109: 1624565 | J109: 1144893 | K109: 0 | L109: 0 | M109: =SUM(I109:L109) -> 2769458
A110: 2025-08-22 | B110: 0 | C110: 2724891 | D110: 0 | E110: 0 | F110: =SUM(B110:E110) -> 2724891 | H110: 2025-08-22 | I110: 0 | J110: 532410 | K110: 0 | L110: 0 | M110: =SUM(I110:L110) -> 532410
A113: Cross Boundary Transfers
A114: Month | B114: Volume (GJ/d) | D114: Information
A115: 2024-08-01 | B115: N/A | D115: N/A
A116: 2024-09-01 | B116: N/A | D116: N/A
A117: 2024-10-01 | B117: 25 | D117: Requested one-way FT-D2 transfer volume from NW Alberta and NE B.C. Area to Edmonton and Area was denied
A118: 2024-11-01 | B118: N/A | D118: N/A
A119: 2024-12-01 | B119: N/A | D119: N/A
A120: 2025-01-01 | B120: N/A | D120: N/A
A121: 2025-02-01 | B121: N/A | D121: N/A
A122: 2025-03-01 | B122: N/A | D122: N/A
A123: 2025-04-01 | B123: N/A | D123: N/A
A124: 2025-05-01 | B124: N/A | D124: N/A
A125: 2025-06-01 | B125: N/A | D125: N/A
A126: 2025-07-01 | B126: N/A | D126: N/A
A127: 2025-08-01 | B127: N/A | D127: N/A
A128: Notes:
A129: 1. Values represent the total volume (GJ/d) of transfer requests processed in the specified month, regardless of effective date
A130: 2. Includes all "out and back" and "one-way" transfers
A131: 3. Out and back transfer requests are tallied as a single transaction
A132: 4. Transfers to storage are not included in totals
A133: 5. Transfers that cross a Delivery Design Area boundary are tallied in the area where the "To" location is situated
A134: 6. Cancelled transfer requests are initiated by the requester (customer, marketer etc.)
A135: 7. ATP is the acronym for Automated Transfer Process, requests that meet certain criteria may be approved automatically
A136: 8. Delivery Design Area boundaries are illustrated in the Design Methodology document on Customer Express (see NGTL/Regulatory/Facilities)
A137: http://www.tccustomerexpress.com/docs/ab_regulatory_facilities/Facilities%20Design%20Methodology%20Document%20-%20Revision%20May%2031,%202018_Oct%204.pdf

Sheet Transfers to Storage
A1: Transfers to Storage - Frequency
B2: FT-R | G2: FT-D1 | L2: FT-D2
A3: Month | B3: Approved (Manual) | C3: Approved (ATP) | D3: Denied | E3: Cancelled | F3: Total | G3: Approved (Manual) | H3: Approved (ATP) | I3: Denied | J3: Cancelled | K3: Total | L3: Approved (Manual) | M3: Approved (ATP) | N3: Denied | O3: Cancelled | P3: Total
A4: 2024-08-22 | B4: 1 | C4: 0 | D4: 0 | E4: 0 | F4: =SUM(B4:E4) -> 1 | G4: 0 | H4: 0 | I4: 0 | J4: 0 | K4: =SUM(G4:J4) -> 0 | L4: 1 | M4: 0 | N4: 0 | O4: 0 | P4: =SUM(L4:O4) -> 1
A5: 2024-09-22 | B5: 1 | C5: 0 | D5: 0 | E5: 0 | F5: 1 | G5: 0 | H5: 0 | I5: 0 | J5: 0 | K5: 0 | L5: 1 | M5: 0 | N5: 0 | O5: 0 | P5: 1
A6: 2024-10-22 | B6: 0 | C6: 0 | D6: 0 | E6: 0 | F6: 0 | G6: 0 | H6: 0 | I6: 0 | J6: 0 | K6: 0 | L6: 0 | M6: 0 | N6: 0 | O6: 0 | P6: 0
A7: 2024-11-22 | B7: 0 | C7: 4 | D7: 0 | E7: 0 | F7: 4 | G7: 0 | H7: 0 | I7: 0 | J7: 0 | K7: 0 | L7: 0 | M7: 0 | N7: 0 | O7: 0 | P7: 0
A8: 2024-12-22 | B8: 0 | C8: 0 | D8: 0 | E8: 0 | F8: 0 | G8: 0 | H8: 0 | I8: 0 | J8: 0 | K8: 0 | L8: 0 | M8: 0 | N8: 0 | O8: 0 | P8: 0
A9: 2025-01-22 | B9: 0 | C9: 25 | D9: 0 | E9: 5 | F9: 30 | G9: 0 | H9: 0 | I9: 0 | J9: 0 | K9: 0 | L9: 0 | M9: 0 | N9: 0 | O9: 0 | P9: 0
A10: 2025-02-22 | B10: 0 | C10: 17 | D10: 0 | E10: 0 | F10: 17 | G10: 0 | H10: 0 | I10: 0 | J10: 0 | K10: 0 | L10: 0 | M10: 0 | N10: 0 | O10: 0 | P10: 0
A11: 2025-03-22 | B11: 0 | C11: 2 | D11: 0 | E11: 0 | F11: 2 | G11: 0 | H11: 0 | I11: 0 | J11: 0 | K11: 0 | L11: 0 | M11: 0 | N11: 0 | O11: 0 | P11: 0
A12: 2025-04-22 | B12: 0 | C12: 0 | D12: 0 | E12: 0 | F12: =SUM(B12:E12) -> 0 | G12: 0 | H12: 0 | I12: 0 | J12: 0 | K12: =SUM(G12:J12) -> 0 | L12: 1 | M12: 0 | N12: 0 | O12: 0 | P12: =SUM(L12:O12) -> 1
A13: 2025-05-22 | B13: 0 | C13: 0 | D13: 0 | E13: 0 | F13: 0 | G13: 0 | H13: 2 | I13: 0 | J13: 0 | K13: 2 | L13: 6 | M13: 0 | N13: 0 | O13: 0 | P13: 6
A14: 2025-06-22 | B14: 0 | C14: 0 | D14: 0 | E14: 0 | F14: 0 | G14: 0 | H14: 74 | I14: 0 | J14: 0 | K14: 74 | L14: 32 | M14: 0 | N14: 0 | O14: 4 | P14: 36
A15: 2025-07-22 | B15: 0 | C15: 0 | D15: 0 | E15: 0 | F15: =SUM(B15:E15) -> 0 | G15: 1 | H15: 64 | I15: 0 | J15: 0 | K15: =SUM(G15:J15) -> 65 | L15: 19 | M15: 0 | N15: 0 | O15: 0 | P15: =SUM(L15:O15) -> 19
A16: 2025-08-22 | B16: 0 | C16: 0 | D16: 0 | E16: 0 | F16: =SUM(B16:E16) -> 0 | G16: 0 | H16: 0 | I16: 0 | J16: 0 | K16: =SUM(G16:J16) -> 0 | L16: 1 | M16: 0 | N16: 0 | O16: 0 | P16: =SUM(L16:O16) -> 1
A18: Transfers to Storage - Volume
B19: FT-R (103m3/d) | G19: FT-D1 (GJ/d) | L19: FT-D2 (GJ/d)
A20: Month | B20: Approved (Manual) | C20: Approved (ATP) | D20: Denied | E20: Cancelled | F20: Total | G20: Approved (Manual) | H20: Approved (ATP) | I20: Denied | J20: Cancelled | K20: Total | L20: Approved (Manual) | M20: Approved (ATP) | N20: Denied | O20: Cancelled | P20: Total
A21: 2024-08-22 | B21: 1000 | C21: 0 | D21: 0 | E21: 0 | F21: =SUM(B21:E21) -> 1000 | G21: 0 | H21: 0 | I21: 0 | J21: 0 | K21: =SUM(G21:J21) -> 0 | L21: 1000 | M21: 0 | N21: 0 | O21: 0 | P21: =SUM(L21:O21) -> 1000
A22: 2024-09-22 | B22: 1000 | C22: 0 | D22: 0 | E22: 0 | F22: 1000 | G22: 0 | H22: 0 | I22: 0 | J22: 0 | K22: 0 | L22: 1000 | M22: 0 | N22: 0 | O22: 0 | P22: 1000
A23: 2024-10-22 | B23: 0 | C23: 0 | D23: 0 | E23: 0 | F23: 0 | G23: 0 | H23: 0 | I23: 0 | J23: 0 | K23: 0 | L23: 0 | M23: 0 | N23: 0 | O23: 0 | P23: 0
A24: 2024-11-22 | B24: 0 | C24: 1055 | D24: 0 | E24: 0 | F24: 1055 | G24: 0 | H24: 0 | I24: 0 | J24: 0 | K24: 0 | L24: 0 | M24: 0 | N24: 0 | O24: 0 | P24: 0
A25: 2024-12-22 | B25: 0 | C25: 0 | D25: 0 | E25: 0 | F25: 0 | G25: 0 | H25: 0 | I25: 0 | J25: 0 | K25: 0 | L25: 0 | M25: 0 | N25: 0 | O25: 0 | P25: 0
A26: 2025-01-22 | B26: 0 | C26: 11893 | D26: 0 | E26: 631 | F26: 12524 | G26: 0 | H26: 0 | I26: 0 | J26: 0 | K26: 0 | L26: 0 | M26: 0 | N26: 0 | O26: 0 | P26: 0
A27: 2025-02-22 | B27: 0 | C27: 6318 | D27: 0 | E27: 0 | F27: 6318 | G27: 0 | H27: 0 | I27: 0 | J27: 0 | K27: 0 | L27: 0 | M27: 0 | N27: 0 | O27: 0 | P27: 0
A28: 2025-03-22 | B28: 0 | C28: 247 | D28: 0 | E28: 0 | F28: 247 | G28: 0 | H28: 0 | I28: 0 | J28: 0 | K28: 0 | L28: 16000 | M28: 0 | N28: 0 | O28: 0 | P28: 16000
A29: 2025-04-22 | B29: 0 | C29: 0 | D29: 0 | E29: 0 | F29: =SUM(B29:E29) -> 0 | G29: 0 | H29: 0 | I29: 0 | J29: 0 | K29: 0 | L29: 1000 | M29: 0 | N29: 0 | O29: 0 | P29: =SUM(L29:O29) -> 1000
A30: 2025-05-22 | B30: 0 | C30: 0 | D30: 0 | E30: 0 | F30: =SUM(B30:E30) -> 0 | G30: 0 | H30: 37500 | I30: 0 | J30: 0 | K30: 37500 | L30: 34500 | M30: 0 | N30: 0 | O30: 0 | P30: =SUM(L30:O30) -> 34500
A31: 2025-06-22 | B31: 0 | C31: 0 | D31: 0 | E31: 0 | F31: 0 | G31: 0 | H31: 1339655 | I31: 0 | J31: 0 | K31: 1339655 | L31: 163750 | M31: 0 | N31: 0 | O31: 39020 | P31: 202770
A32: 2025-07-22 | B32: 0 | C32: 0 | D32: 0 | E32: 0 | G32: 144000 | H32: 1175874 | I32: 0 | J32: 0 | K32: =SUM(G32:J32) -> 1319874 | L32: 104400 | M32: 0 | N32: 0 | O32: 0 | P32: =SUM(L32:O32) -> 104400
A33: 2025-08-22 | B33: 0 | C33: 0 | D33: 0 | E33: 0 | G33: 0 | H33: 0 | I33: 0 | J33: 0 | K33: =SUM(G33:J33) -> 0 | L33: 1000 | M33: 0 | N33: 0 | O33: 0 | P33: =SUM(L33:O33) -> 1000
A38: Cross Boundary Transfers
A39: Month | B39: Frequency | C39: Volume (e3m3/d) | D39: Information
A40: 2024-08-01 | B40: N/A | C40: N/A | D40: N/A
A41: 2024-09-01 | B41: N/A | C41: N/A | D41: N/A
A42: 2024-10-01 | B42: N/A | C42: N/A | D42: N/A
A43: 2024-11-01 | B43: N/A | C43: N/A | D43: N/A
A44: 2024-12-01 | B44: N/A | C44: N/A | D44: N/A
A45: 2025-01-01 | B45: N/A | C45: N/A | D45: N/A
A46: 2025-02-01 | B46: N/A | C46: N/A | D46: N/A
A47: 2025-03-01 | B47: N/A | C47: N/A | D47: N/A
A48: 2025-04-01 | B48: N/A | C48: N/A | D48: N/A
A49: 2025-05-01 | B49: N/A | C49: N/A | D49: N/A
A50: 2025-06-01 | B50: N/A | C50: N/A | D50: N/A
A51: 2025-07-01 | B51: N/A | C51: N/A | D51: N/A
A52: 2025-08-01 | B52: N/A | C52: N/A | D52: N/A
A54: Notes:
A55: 1. Values represent the total volume (GJ/d) of transfer requests processed in the specified month, regardless of effective date
A56: 2. Includes all "out and back" and "one-way" transfers
A57: 3. Out and back transfer requests are tallied as a single transaction
A58: 4. Transfers that cross a Delivery Design Area boundary are tallied in the area where the "To" location is situated
A59: 5. Cancelled transfer requests are initiated by the requester (customer, marketer etc.)
A60: 6. ATP is the acronym for Automated Transfer Process, requests that meet certain criteria may be approved automatically
A61: 7. Delivery Design Area boundaries are illustrated in the Design Methodology document on Customer Express (see NGTL/Regulatory/Facilities)
A62: http://www.tccustomerexpress.com/docs/ab_regulatory_facilities/Facilities%20Design%20Methodology%20Document%20-%20Revision%20May%2031,%202018_Oct%204.pdf
P73: 6
